Cogmind - Beta 9.6 --- EXPLORER MODE // 2020.05.16 @ 02:13:10 // Winter2019/RPGLIKE Player: hemo Result: Establishing 0b11! Performance ------------- Evolutions (9) 4500 Regions Visited (30) 6000 Robots Destroyed (471) 2355 Value Destroyed (24880) 24880 Prototype IDs (206) 4120 Alien Tech Used (3) 600 Bonus (28955) 28955 TOTAL SCORE: 71410 Bonus ------- High Alert Combat Kills 2230 Follower Combat Kills 1155 Entered Garrisons 200 Used RIF Installer 500 Aligned with FarCom 300 Met Data Miner 300 Met Zhirov 300 A7 Reached Mainframe 300 Met R17 at Cetus 500 Destroyed MAIN.C Guards 500 Met MAIN.C 5000 Hacked MAIN.C 300 Destroyed MAIN.C Shell 5000 Destroyed MAIN.C 10000 Win 3000 Friendly Fire -630 Cogmind --------- Core Integrity 600/600 Matter 273/300 Energy 928/940 System Corruption 0% Temperature Cool (10) Movement Flying (20) Location 0b11 Command Parts ------- > --- POWER (3) -------- Cooled Antimatter Reactor Cooled Antimatter Reactor Cooled Antimatter Reactor > --- PROPULSION (6) --- Biomechanical Wings Cooled Nuclear Pulse Thruster Cooled Nuclear Pulse Thruster Cooled Nuclear Pulse Thruster Cooled Nuclear Pulse Thruster Cooled Nuclear Pulse Thruster > --- UTILITY (14) ----- Experimental Power Amplifier Experimental Terrain Scanner Experimental Melee Analysis Suite Experimental Melee Analysis Suite Experimental Melee Analysis Suite Experimental Melee Analysis Suite Experimental Target Analyzer Experimental Core Analyzer Femtoactuators Advanced Reaction Control System Experimental Phase Shifter Beam Splitter Experimental Shock Absorption System EM Dispersion Field > --- WEAPON (1) ------- Enhanced Force Lance > --- INVENTORY (4) ---- Protomatter-42 Improved Stasis Canceller Heavy Shock Bomb Launcher Advanced Remote Datajack Peak State ------------ > --- POWER ------------ Cooled Antimatter Reactor Cooled Antimatter Reactor Cooled Antimatter Reactor > --- PROPULSION ------- Biomechanical Wings Cooled Nuclear Pulse Thruster Cooled Nuclear Pulse Thruster Cooled Nuclear Pulse Thruster Cooled Nuclear Pulse Thruster Cooled Nuclear Pulse Thruster > --- UTILITY ---------- Experimental Power Amplifier Experimental Melee Analysis Suite Experimental Melee Analysis Suite Experimental Melee Analysis Suite Experimental Melee Analysis Suite Experimental Target Analyzer Experimental Core Analyzer Femtoactuators Advanced Reaction Control System Experimental Phase Shifter Beam Splitter Experimental Shock Absorption System EM Dispersion Field Quantum Router > --- WEAPON ----------- Ragnarok Missile Launcher > --- INVENTORY -------- Experimental Terrain Scanner Improved Stasis Canceller Experimental Transmission Jammer Advanced Remote Datajack [Rating: 209] Favorites ----------- Power Cooled Deuterium Engine Engine Cooled Deuterium Engine Power Core Light Nuclear Core Reactor Cooled Antimatter Reactor Propulsion Cooled Nuclear Pulse Thruster Wheel Wheel Hover Unit Hover Unit Flight Unit Cooled Nuclear Pulse Thruster Utility Quantum Router Device Microactuators Storage Compact Battery Processor Improved Melee Analysis Suite Hackware Quantum Router Protection Centrium Medium Armor Plating Weapon Makeshift Axe Energy Gun Medium Laser Ballistic Gun Shotgun Ballistic Cannon Linear Accelerator Launcher Advanced EMP Blaster Special Weapon Improved Remote Datajack Slashing Weapon Makeshift Axe Piercing Weapon Enhanced Force Lance Build | -11 -10 -10 -10 -9 -8 -8 -8 -8 -7 -7 -7 -7 -6 -6 -6 -6 -6 -5 -5 -5 -5 -4 -4 -4 -4 -3 -3 -2 -1 -1 ------- Run | Scr Mat Min Exi Min Mat Gar Mat Sto Fac Low Low Dat Pro Fac Low Low Zio Pro Fac Ext Cet Fac Upp Upp Zhi Pro Res Res Acc Com Slots Evolved 20 | 3 3 2 . . 4 . 1 2 . . . . 1 1 . . . . 1 . . 1 . . . . . 1 . . Power 2 | . . . . . 1 . . 1 . . . . . . . . . . . . . . . . . . . . . . Propulsion 5 | 2 1 1 . . . . . 1 . . . . . . . . . . . . . . . . . . . . . . Utility 13 | 1 2 1 . . 3 . 1 . . . . . 1 1 . . . . 1 . . 1 . . . . . 1 . . Weapon . | . . . . . . . . . . . . . . . . . . . . . . . . . . . . . . . Parts Attached 227 | 5 10 5 . 3 22 . 2 13 23 . . 2 1 15 . 1 1 4 10 14 10 15 1 3 3 3 13 14 2 32 Power 22 | 1 1 . . 1 4 . . 2 7 . . . . . . . . . . . . 3 . . . . . . . 3 Engine 13 | 1 . . . 1 3 . . 2 6 . . . . . . . . . . . . . . . . . . . . . Core 3 | . 1 . . . 1 . . . 1 . . . . . . . . . . . . . . . . . . . . . Reactor 6 | . . . . . . . . . . . . . . . . . . . . . . 3 . . . . . . . 3 Propulsion 31 | 1 5 2 . . 6 . 1 2 3 . . . . 6 . . . . 4 . . . . . . . . 1 . . Treads . | . . . . . . . . . . . . . . . . . . . . . . . . . . . . . . . Leg . | . . . . . . . . . . . . . . . . . . . . . . . . . . . . . . . Wheel 1 | 1 . . . . . . . . . . . . . . . . . . . . . . . . . . . . . . Hover 1 | . 1 . . . . . . . . . . . . . . . . . . . . . . . . . . . . . Flight 29 | . 4 2 . . 6 . 1 2 3 . . . . 6 . . . . 4 . . . . . . . . 1 . . Utility 119 | 2 3 3 . 1 12 . 1 . 11 . . 2 1 9 . 1 . 4 6 2 2 11 1 3 1 1 12 13 2 15 Device 76 | 1 2 2 . . 6 . 1 . 5 . . . . 4 . . . 4 6 2 . 8 1 3 1 . 8 8 2 12 Storage 7 | . 1 . . . 2 . . . . . . . . 1 . . . . . . . . . . . . 1 1 . 1 Processor 21 | 1 . 1 . . 3 . . . 3 . . . 1 1 . 1 . . . . 1 1 . . . 1 3 3 . 1 Hackware 10 | . . . . . 1 . . . 3 . . 2 . 3 . . . . . . . . . . . . . 1 . . Protection 5 | . . . . 1 . . . . . . . . . . . . . . . . 1 2 . . . . . . . 1 Artifact . | . . . . . . . . . . . . . . . . . . . . . . . . . . . . . . . Weapon 55 | 1 1 . . 1 . . . 9 2 . . . . . . . 1 . . 12 8 1 . . 2 2 1 . . 14 Energy Gun 11 | 1 . . . . . . . 3 . . . . . . . . . . . 5 2 . . . . . . . . . Energy Cannon . | . . . . . . . . . . . . . . . . . . . . . . . . . . . . . . . Ballistic Gun 3 | . 1 . . . . . . . 1 . . . . . . . . . . . 1 . . . . . . . . . Ballistic Cannon 2 | . . . . . . . . . . . . . . . . . . . . . . . . . . . . . . 2 Launcher 5 | . . . . . . . . 2 . . . . . . . . . . . . . . . . . . . . . 3 Special Weapon 6 | . . . . . . . . . . . . . . . . . . . . 1 1 . . . 1 1 . . . 2 Impact Weapon . | . . . . . . . . . . . . . . . . . . . . . . . . . . . . . . . Slashing Weapon 17 | . . . . 1 . . . 4 1 . . . . . . . 1 . . 6 4 . . . . . . . . . Piercing Weapon 11 | . . . . . . . . . . . . . . . . . . . . . . 1 . . 1 1 1 . . 7 Special Melee Weapon . | . . . . . . . . . . . . . . . . . . . . . . . . . . . . . . . Unidentified Prototypes 18 | . . 1 . . . . . . . . . 2 . 2 . . . . . . 2 2 . 1 2 . . . . 6 Parts Lost 4 | . . . . . . . . . 1 . . . . . . . . . . 1 1 1 . . . . . . . . Power . | . . . . . . . . . . . . . . . . . . . . . . . . . . . . . . . Propulsion . | . . . . . . . . . . . . . . . . . . . . . . . . . . . . . . . Utility 4 | . . . . . . . . . 1 . . . . . . . . . . 1 1 1 . . . . . . . . Weapon . | . . . . . . . . . . . . . . . . . . . . . . . . . . . . . . . Highest Loss Streak 1 | . . . . . . . . . 1 . . . . . . . . . . 1 1 1 . . . . . . . . Average Slot Usage (%) 99 | . 95 96 100 100 99 100 100 98 99 100 100 100 99 99 100 100 100 100 100 98 98 100 100 100 98 100 99 99 100 100 Engine 8 | . 7 . . . 12 12 11 10 12 15 15 15 15 14 14 14 14 14 13 13 13 8 . . . . . . . . Reactor 3 | . . . . . . . . . . . . . . . . . . . . . . 4 13 13 13 13 13 12 12 12 Flight 28 | . 18 40 41 41 34 31 29 29 31 31 31 31 30 29 28 28 28 28 27 27 27 26 26 26 26 26 26 25 25 25 Device 22 | . 21 20 25 17 14 18 22 22 24 21 21 21 20 19 19 19 19 19 19 23 21 20 24 26 24 26 27 29 31 31 Storage 2 | . 1 8 8 8 6 6 5 5 5 5 5 5 5 . . . . . . . . . . . . . 1 2 1 . Processor 12 | . 12 8 8 8 13 18 17 16 11 10 10 10 13 9 9 9 9 9 9 9 9 13 14 13 13 13 13 15 20 24 Hackware 11 | . . . . . 2 6 5 5 4 10 10 10 10 20 23 23 23 23 22 19 18 17 17 17 17 17 13 9 4 1 Slashing Weapon 2 | . . . . 7 6 6 5 3 4 5 5 5 5 4 4 4 4 4 4 2 3 . . . . . . . . . Piercing Weapon 1 | . . . . . . . . . . . . . . . . . . . . . . 3 4 4 2 4 4 4 4 3 Naked Turns . | . . . . . . . . . . . . . . . . . . . . . . . . . . . . . . . Heaviest Build 82 | 6 14 15 15 17 19 16 18 28 42 42 42 42 42 43 42 42 43 44 44 46 52 68 71 71 71 71 78 81 79 82 Greatest Support 103 | 10 16 20 20 20 34 34 35 41 49 43 49 49 49 78 78 78 58 78 83 83 83 88 93 93 73 93 98 98 103 103 Greatest Overweight (x) 1 | 1 . . . . . . . . 1 . . . . . . . . . . . . . . . . . . 1 . . Average Overweight (x) . | . . . . . . . . . . . . . . . . . . . . . . . . . . . . . . . Largest Inventory Capacity 4 | 1 1 1 1 2 2 2 2 3 3 3 3 4 4 4 4 4 4 4 4 4 4 4 4 4 4 4 4 4 4 4 Average Capacity 3 | . 1 1 1 1 2 2 2 2 3 3 3 3 4 4 4 4 4 4 4 4 4 4 4 4 4 4 4 4 4 4 Most Carried 4 | . 1 1 1 2 2 2 2 3 3 3 3 4 4 4 4 4 4 4 4 4 4 4 4 4 4 4 4 4 4 4 Average Carried 3 | . . 1 1 1 1 2 1 2 2 3 3 3 4 3 4 4 4 3 3 3 3 3 3 4 4 3 3 3 4 3 Final Capacity 4 | 1 1 1 1 2 2 2 2 3 3 3 3 4 4 4 4 4 4 4 4 4 4 4 4 4 4 4 4 4 4 4 Final Carried 4 | . 1 1 1 2 2 2 2 3 3 3 3 4 4 4 4 4 4 4 4 3 4 4 4 4 4 4 4 4 4 4 Class Distribution -------------------- 43% | Wizard-Ninja 10% | Wizard-Sprinter 10% | Scavenger-Scout 7% | Hacker-Ninja 6% | Commander-Ninja 6% | Machinist-Ninja 4% | Machinist-Scout 3% | Hacker-Sprinter Dominant Class ---------------- Scavenger-Mutant | -10/Materials Scavenger-Scout | -10/Mines Scavenger-Scout | -10/Exiles Scavenger-Scout | -9/Mines Scavenger-Scout | -8/Materials Hacker-Ninja | -8/Garrison Hacker-Ninja | -8/Materials Commander-Ninja | -8/Storage Commander-Ninja | -7/Factory Hacker-Sprinter | -7/Lower Caves Hacker-Sprinter | -7/Lower Caves Hacker-Sprinter | -7/Data Miner Wizard-Sprinter | -6/Proximity Caves Wizard-Ninja | -6/Factory Wizard-Sprinter | -6/Lower Caves Wizard-Sprinter | -6/Lower Caves Wizard-Sprinter | -6/Zion Wizard-Sprinter | -5/Proximity Caves Wizard-Ninja | -5/Factory Wizard-Ninja | -5/Extension Wizard-Ninja | -5/Cetus Wizard-Ninja | -4/Factory Wizard-Sprinter | -4/Upper Caves Wizard-Sprinter | -4/Upper Caves Wizard-Sprinter | -4/Zhirov Wizard-Sprinter | -3/Proximity Caves Wizard-Ninja | -3/Research Wizard-Ninja | -2/Research Machinist-Ninja | -1/Access Machinist-Scout | -1/Command Resources | -11 -10 -10 -10 -9 -8 -8 -8 -8 -7 -7 -7 -7 -6 -6 -6 -6 -6 -5 -5 -5 -5 -4 -4 -4 -4 -3 -3 -2 -1 -1 ----------- Run | Scr Mat Min Exi Min Mat Gar Mat Sto Fac Low Low Dat Pro Fac Low Low Zio Pro Fac Ext Cet Fac Upp Upp Zhi Pro Res Res Acc Com Matter Collected 2955 | 229 129 262 . 30 220 . 20 105 305 . . 13 17 150 . 10 . 40 100 125 132 160 10 40 . 101 100 170 20 467 Remotely . | . . . . . . . . . . . . . . . . . . . . . . . . . . . . . . . Salvage Created 24764 | 25 827 223 . 153 1802 512 109 156 1451 . 287 29 984 1222 190 199 . 296 1269 391 599 3105 217 119 . 522 2657 2366 1109 3945 Parts 1220 | 4 48 11 . 13 88 18 4 22 85 . 22 5 35 67 8 12 . 17 62 28 15 124 8 13 . 24 135 139 75 138 Haulers Intercepted 26 | . 2 . . . 6 . . . 5 . . . . 2 . . . . . . . 8 . . . . 3 . . . Recyclers Shooed 4 | . 1 . . . . . . . . . . . . . . . . . . . . . . . . . 3 . . . Parts Field Recycled . | . . . . . . . . . . . . . . . . . . . . . . . . . . . . . . . Retrieved Matter . | . . . . . . . . . . . . . . . . . . . . . . . . . . . . . . . Parts Self-Destructed . | . . . . . . . . . . . . . . . . . . . . . . . . . . . . . . . Prevented . | . . . . . . . . . . . . . . . . . . . . . . . . . . . . . . . Kills | -11 -10 -10 -10 -9 -8 -8 -8 -8 -7 -7 -7 -7 -6 -6 -6 -6 -6 -5 -5 -5 -5 -4 -4 -4 -4 -3 -3 -2 -1 -1 ------- Run | Scr Mat Min Exi Min Mat Gar Mat Sto Fac Low Low Dat Pro Fac Low Low Zio Pro Fac Ext Cet Fac Upp Upp Zhi Pro Res Res Acc Com Combat Hostiles Destroyed 406 | . 19 15 . 6 31 8 3 7 26 . 12 . 15 19 4 3 . 10 26 5 7 34 3 5 . 7 25 38 23 55 Melee 372 | . . . . 6 31 8 3 7 26 . 12 . 15 19 4 3 . 10 26 5 7 34 3 5 . 7 25 38 23 55 Guns 34 | . 19 15 . . . . . . . . . . . . . . . . . . . . . . . . . . . . Classes Destroyed 19 | 1 5 1 . 1 4 . . . 1 . . . 1 . . . . . . . . 1 . . . . . . . 4 Worker 1 | . . . . . . . . . . . . . . . . . . . . . . 1 . . . . . . . . Builder 5 | . . . . . 1 . . . . . . . . 1 . . . . . 3 . . . . . . . . . . Tunneler 2 | 1 . 1 . . . . . . . . . . . . . . . . . . . . . . . . . . . . Hauler 26 | . 2 . . . 6 . . . 5 . . . . 2 . . . . . . . 8 . . . . 3 . . . Recycler 8 | . 1 . . . . . . . . . . . . . . . . . . . . . . . . . 7 . . . Carrier 3 | . . . . . 1 . . . 1 . . . . . . . . . . . 1 . . . . . . . . . Watcher 18 | . 3 . . . 5 . . . 1 . . . . . . . . . . . . 5 . . . . . 2 . 2 Swarmer 73 | . 5 2 . . 6 . 2 . . . 9 . . 6 . . . 7 8 . . 6 . 3 . 2 . 7 5 5 Grunt 139 | . 14 3 . 5 13 6 . . 16 . 3 . 6 6 2 3 . 2 5 2 3 8 2 . . 4 8 8 4 16 Brawler 9 | . . . . . . . . . . . . . 2 . . . . . 2 . 1 1 . . . . . . . 3 Duelist 11 | . . . . . 1 . . . 3 . . . 3 . . . . . 1 . . 2 . . . . . . . 1 Sentry 61 | . . . . 1 8 1 . 7 6 . . . 2 6 1 . . . 5 2 . 7 1 1 . . 5 4 3 1 Demolisher 2 | . . . . . . . . . . . . . . . . . . . . . . . . . . . . . . 2 Specialist 1 | . . . . . . . . . . . . . . . . . . . . . . . . . . . . . . 1 Hunter 45 | . . . . . 3 1 1 . . . . . 2 . 1 . . . 2 1 . 4 . . . . 2 9 8 11 Programmer 44 | . . . . . . . . . 1 . . . . 1 . . . 1 3 . . 6 . 1 . 2 10 10 3 6 Behemoth 2 | . . . . . . . . . . . . . . . . . . . . . . . . . . . . . . 2 Cetus Guard 3 | . . . . . . . . . . . . . . . . . . . . . 3 . . . . . . . . . M Guard 2 | . . . . . . . . . . . . . . . . . . . . . . . . . . . . . . 2 Combat Programmer 2 | . . . . . . . . . . . . . . . . . . . . . . . . . . . . . . 2 Alpha 7 1 | . . . . . . . . . . . . . . . . . . . . . . . . . . . . . . 1 Assembled 10 | . . 10 . . . . . . . . . . . . . . . . . . . . . . . . . . . . Best Kill Streak 30 | 1 6 4 . 2 6 4 3 2 6 . 5 1 8 9 3 3 . 5 7 5 5 11 2 3 . 5 7 10 8 30 Combat Bots Only 28 | . 6 4 . 2 5 4 3 2 3 . 5 . 8 9 3 3 . 5 7 2 4 8 2 3 . 5 7 9 8 28 Max Kills in Single Turn 1 | 1 1 1 . 1 1 1 1 1 1 . 1 1 1 1 1 1 . 1 1 1 1 1 1 1 . 1 1 1 1 1 Gunslinging . | . . . . . . . . . . . . . . . . . . . . . . . . . . . . . . . Exploded . | . . . . . . . . . . . . . . . . . . . . . . . . . . . . . . . Melee 1 | . . . . 1 1 1 1 1 1 . 1 . 1 1 1 1 . 1 1 1 1 1 1 1 . 1 1 1 1 1 Uniques/NPCs Destroyed 2 | . . . . . . . . . . . . 1 . . . . . . . . . . . . . . . . . 1 Data Miner (-7/Data Miner) MAIN.C Shell (-1/Command) MAIN.C (-1/Command) Combat | -11 -10 -10 -10 -9 -8 -8 -8 -8 -7 -7 -7 -7 -6 -6 -6 -6 -6 -5 -5 -5 -5 -4 -4 -4 -4 -3 -3 -2 -1 -1 -------- Run | Scr Mat Min Exi Min Mat Gar Mat Sto Fac Low Low Dat Pro Fac Low Low Zio Pro Fac Ext Cet Fac Upp Upp Zhi Pro Res Res Acc Com Damage Taken 7269 | . 512 146 . 84 509 159 19 57 401 . 259 . 377 261 79 59 . 132 507 357 642 857 148 71 . 67 227 298 300 741 Core 5727 | . 407 113 . 58 394 129 14 48 334 . 210 . 316 203 65 50 . 102 398 285 511 601 115 56 . 58 184 248 239 589 Absorbed by Shields 190 | . . . . . . . . . . . . . . . . . . . . . 186 . . . . . . 4 . . Redirected to Core 4487 | . 260 93 . 35 296 100 14 30 197 . 161 . 198 170 40 26 . 91 372 271 385 529 115 47 . 30 154 177 204 492 Core Remaining (%) 100 | 100 . . . 100 . . . 100 . . . . 100 . . . . 100 . . 100 . . . . 100 100 100 . 100 Volleys Fired 274 | 2 122 53 . . . . . 47 . . . . . . . . . . . 23 3 . . . 3 . . . . 21 Largest 1 | 1 1 1 . . . . . 1 . . . . . . . . . . . 1 1 . . . 1 . . . . 1 Hottest 240 | 50 50 23 . . . . . 50 . . . . . . . . . . . 75 240 . . . 40 . . . . 66 Shots Fired 274 | 2 122 53 . . . . . 47 . . . . . . . . . . . 23 3 . . . 3 . . . . 21 Gun 237 | 2 122 53 . . . . . 37 . . . . . . . . . . . 21 2 . . . . . . . . . Cannon 12 | . . . . . . . . . . . . . . . . . . . . . . . . . . . . . . 12 Launcher 14 | . . . . . . . . 10 . . . . . . . . . . . . . . . . . . . . . 4 Special 11 | . . . . . . . . . . . . . . . . . . . . 2 1 . . . 3 . . . . 5 Kinetic 67 | . 2 53 . . . . . . . . . . . . . . . . . . . . . . . . . . . 12 Thermal 145 | 2 120 . . . . . . . . . . . . . . . . . . 21 2 . . . . . . . . . Explosive . | . . . . . . . . . . . . . . . . . . . . . . . . . . . . . . . Electromagnetic 51 | . . . . . . . . 47 . . . . . . . . . . . . . . . . . . . . . 4 Robot Hit Streak 39 | 1 39 36 . . . . . . . . . . . . . . . . . 1 3 . . . 6 . . . . 9 Robot Miss Streak 2 | 1 1 2 . . . . . . . . . . . . . . . . . 1 . . . . . . . . . . Penetration Max . | . . . . . . . . . . . . . . . . . . . . . . . . . . . . . . . Secondary Targets . | . . . . . . . . . . . . . . . . . . . . . . . . . . . . . . . Shots Hit Robots 1177 | 1 116 40 . 16 116 27 5 15 80 . 27 1 44 39 7 8 . 22 64 15 42 106 11 7 3 15 72 86 36 156 Core Hits 600 | 1 43 31 . 6 44 9 3 7 34 . 13 1 19 24 4 6 . 11 31 10 16 60 5 5 . 10 42 51 26 88 Critical Hits 127 | . 1 . . 1 3 . . . 1 . . . . 1 1 . . . 2 . . 21 1 1 . 2 13 26 11 42 Critical Kills 59 | . 1 . . . 3 . . . 1 . . . . 1 . . . . . . . 13 . 1 . 1 6 11 6 15 Critical Parts Destroyed 42 | . . . . 1 . . . . . . . . . . 1 . . . 2 . . 7 1 . . 1 5 9 3 12 Melee Attacks 1110 | . . . . 17 129 35 6 23 81 . 30 1 44 53 7 8 . 22 71 25 46 114 11 10 . 16 74 88 40 159 Impact . | . . . . . . . . . . . . . . . . . . . . . . . . . . . . . . . Slashing 614 | . . . . 17 129 35 6 23 81 . 30 1 44 53 7 8 . 22 71 25 46 16 . . . . . . . . Piercing 496 | . . . . . . . . . . . . . . . . . . . . . . 98 11 10 . 16 74 88 40 159 Sneak Attacks 126 | . . . . 1 14 2 1 1 8 . 3 1 6 7 . . . 3 9 5 2 24 2 2 . 2 15 8 4 6 Combat Hostiles 81 | . . . . 1 4 2 1 1 2 . 3 . 6 4 . . . 3 9 3 1 14 2 2 . 1 4 8 4 6 Follow-up Attacks . | . . . . . . . . . . . . . . . . . . . . . . . . . . . . . . . Damage Inflicted 82511 | 26 1534 690 . 670 6417 1551 329 905 4740 . 1762 112 2593 2752 379 420 . 1697 4626 1333 2236 8695 1097 799 . 1354 7506 8404 3953 15931 Guns 2312 | 26 1534 690 . . . . . . . . . . . . . . . . . 23 39 . . . . . . . . . Cannons . | . . . . . . . . . . . . . . . . . . . . . . . . . . . . . . . Explosions 94 | . . . . . . . . . . . . . . . . . . . . . . . . . . . . . . 94 Melee 80105 | . . . . 670 6417 1551 329 905 4740 . 1762 112 2593 2752 379 420 . 1697 4626 1310 2197 8695 1097 799 . 1354 7506 8404 3953 15837 Ramming . | . . . . . . . . . . . . . . . . . . . . . . . . . . . . . . . Kinetic 736 | . 46 690 . . . . . . . . . . . . . . . . . . . . . . . . . . . . Thermal 1576 | 26 1488 . . . . . . . . . . . . . . . . . . 23 39 . . . . . . . . . Explosive 49 | . . . . . . . . . . . . . . . . . . . . . . . . . . . . . . 49 Electromagnetic 45 | . . . . . . . . . . . . . . . . . . . . . . . . . . . . . . 45 Impact . | . . . . . . . . . . . . . . . . . . . . . . . . . . . . . . . Slashing 33420 | . . . . 670 6417 1551 329 905 4740 . 1762 112 2593 2752 379 420 . 1697 4626 1310 2197 960 . . . . . . . . Piercing 46685 | . . . . . . . . . . . . . . . . . . . . . . 7735 1097 799 . 1354 7506 8404 3953 15837 Highest Corruption 2 | . 2 2 2 2 . . . . . . . . . . . . . 1 . . . 1 . . . . 1 . . . Average Corruption 1 | . 1 2 2 2 . . . . . . . . . . . . . 1 . . . 1 . . . . 1 . . . Corruption Purged 4 | . . . . . . . . . . . . . . . . . . 1 . . . 1 . . . . 2 . . . Effects 16 | . 3 1 3 6 . . . . . . . . . . . . . 1 . . . . . . . . 2 . . . Message Errors 4 | . 1 . 1 1 . . . . . . . . . . . . . . . . . . . . . . 1 . . . Heat Flow Errors 3 | . . . 1 2 . . . . . . . . . . . . . . . . . . . . . . . . . . Energy Discharges 5 | . 1 1 . 2 . . . . . . . . . . . . . 1 . . . . . . . . . . . . Data Loss (minor) 4 | . 1 . 1 1 . . . . . . . . . . . . . . . . . . . . . . 1 . . . Overload Shots 1 | . . . . . . . . . . . . . . . . . . . . . 1 . . . . . . . . . Overflow Damage 6573 | . . . . 88 733 209 42 35 333 . 161 . 253 217 31 5 . 356 324 60 19 346 416 116 . 396 937 652 131 713 Projectiles . | . . . . . . . . . . . . . . . . . . . . . . . . . . . . . . . Explosions . | . . . . . . . . . . . . . . . . . . . . . . . . . . . . . . . Melee 6573 | . . . . 88 733 209 42 35 333 . 161 . 253 217 31 5 . 356 324 60 19 346 416 116 . 396 937 652 131 713 Knockbacks . | . . . . . . . . . . . . . . . . . . . . . . . . . . . . . . . Impact . | . . . . . . . . . . . . . . . . . . . . . . . . . . . . . . . Kinetic . | . . . . . . . . . . . . . . . . . . . . . . . . . . . . . . . Secondary . | . . . . . . . . . . . . . . . . . . . . . . . . . . . . . . . Self-Inflicted Damage . | . . . . . . . . . . . . . . . . . . . . . . . . . . . . . . . Shots . | . . . . . . . . . . . . . . . . . . . . . . . . . . . . . . . Rammed . | . . . . . . . . . . . . . . . . . . . . . . . . . . . . . . . Targets Rammed . | . . . . . . . . . . . . . . . . . . . . . . . . . . . . . . . Kicked . | . . . . . . . . . . . . . . . . . . . . . . . . . . . . . . . Crushed . | . . . . . . . . . . . . . . . . . . . . . . . . . . . . . . . Highest Temperature 336 | 20 87 6 241 235 4 13 . 4 78 . 54 171 35 184 59 . . 173 209 102 167 139 221 336 . 80 190 160 310 145 Average Temperature 63 | 12 34 3 144 98 4 8 . 4 25 . 27 106 19 64 43 . . 77 66 38 63 42 94 139 . 54 70 62 87 53 Received Heat Transfer 1990 | . 438 131 . 78 162 81 . 18 201 . 90 . 135 99 36 48 . 9 45 18 179 189 33 . . . . . . . Effects 5 | . . . . 2 . . . . . . . . . . . . . . . . . . . 2 . . . . 1 . Interference 4 | . . . . 2 . . . . . . . . . . . . . . . . . . . 2 . . . . . . Damage (minor) 1 | . . . . . . . . . . . . . . . . . . . . . . . . . . . . . 1 . Siege Activations . | . . . . . . . . . . . . . . . . . . . . . . . . . . . . . . . Robots Corrupted . | . . . . . . . . . . . . . . . . . . . . . . . . . . . . . . . Combat Hostiles . | . . . . . . . . . . . . . . . . . . . . . . . . . . . . . . . Parts Fried 5 | . . . . . . . . . . . . . . . . . . . . . 1 1 . . . 1 . . . 2 Impact Corruptions . | . . . . . . . . . . . . . . . . . . . . . . . . . . . . . . . Robots Melted . | . . . . . . . . . . . . . . . . . . . . . . . . . . . . . . . Combat Hostiles . | . . . . . . . . . . . . . . . . . . . . . . . . . . . . . . . Parts Melted 15 | . 14 . . . . . . . . . . . . . . . . . . . . . . . . . 1 . . . Heat Transferred 4305 | 74 4144 . . . . . . . . . . . . . . . . . . 50 37 . . . . . . . . . Parts Sabotaged . | . . . . . . . . . . . . . . . . . . . . . . . . . . . . . . . Parts Stolen . | . . . . . . . . . . . . . . . . . . . . . . . . . . . . . . . Parts Stripped . | . . . . . . . . . . . . . . . . . . . . . . . . . . . . . . . Power Chain Reactions . | . . . . . . . . . . . . . . . . . . . . . . . . . . . . . . . Missiles Intercepted . | . . . . . . . . . . . . . . . . . . . . . . . . . . . . . . . Alert | -11 -10 -10 -10 -9 -8 -8 -8 -8 -7 -7 -7 -7 -6 -6 -6 -6 -6 -5 -5 -5 -5 -4 -4 -4 -4 -3 -3 -2 -1 -1 ------- Run | Scr Mat Min Exi Min Mat Gar Mat Sto Fac Low Low Dat Pro Fac Low Low Zio Pro Fac Ext Cet Fac Upp Upp Zhi Pro Res Res Acc Com Peak Influence 957 | 5 330 267 . 154 593 433 169 318 500 . . . . 430 . . . . 415 94 166 957 . . . . 813 873 598 175 Average Influence 175 | 3 199 222 . 104 240 260 63 86 199 . . . . 92 . . . . 94 23 44 291 . . . . 209 271 377 62 Maximum Alert Level 4 | . 1 1 . . 2 2 . 1 2 . . . . 2 . . . . 2 . . 3 . . . . 3 3 2 4 Low Security (%) 63 | 100 49 22 . 100 38 32 100 84 48 . . . . 84 . . . . 85 100 100 57 . . . . 72 52 10 45 Level 1 23 | . 50 77 . . 44 64 . 15 40 . . . . 10 . . . . 13 . . 19 . . . . 15 19 45 5 Level 2 7 | . . . . . 16 3 . . 11 . . . . 4 . . . . 1 . . 6 . . . . 7 21 44 5 Level 3 4 | . . . . . . . . . . . . . . . . . . . . . . 17 . . . . 4 6 . 27 Level 4 1 | . . . . . . . . . . . . . . . . . . . . . . . . . . . . . . 16 Level 5 . | . . . . . . . . . . . . . . . . . . . . . . . . . . . . . . . High Security . | . . . . . . . . . . . . . . . . . . . . . . . . . . . . . . . Max Security . | . . . . . . . . . . . . . . . . . . . . . . . . . . . . . . . Squads Dispatched 59 | . 6 1 . 1 7 . . . 6 . 1 . . 5 . . . . 6 . . 9 . . . . 10 4 1 2 Investigation 20 | . 6 1 . 1 7 . . . 2 . 1 . . . . . . . 1 . . . . . . . . 1 . . Extermination 17 | . . . . . . . . . 1 . . . . 2 . . . . 4 . . 3 . . . . 3 3 . 1 Reinforcement 11 | . . . . . . . . . 3 . . . . 3 . . . . 1 . . 2 . . . . 1 . 1 . Assault 2 | . . . . . . . . . . . . . . . . . . . . . . 1 . . . . . . . 1 Garrison 9 | . . . . . . . . . . . . . . . . . . . . . . 3 . . . . 6 . . . Intercept . | . . . . . . . . . . . . . . . . . . . . . . . . . . . . . . . Construction Impeded 1 | . . . . . . . . . . . . . . 1 . . . . . . . . . . . . . . . . Haulers Reinforced 9 | . . . . . . . . . 3 . . . . 2 . . . . . . . 2 . . . . 1 . 1 . Stealth | -11 -10 -10 -10 -9 -8 -8 -8 -8 -7 -7 -7 -7 -6 -6 -6 -6 -6 -5 -5 -5 -5 -4 -4 -4 -4 -3 -3 -2 -1 -1 --------- Run | Scr Mat Min Exi Min Mat Gar Mat Sto Fac Low Low Dat Pro Fac Low Low Zio Pro Fac Ext Cet Fac Upp Upp Zhi Pro Res Res Acc Com Distress Signals 47 | . . 1 . . 1 . 2 . 2 . . . . . . . . . 1 . 1 1 . . . . 3 3 2 30 Communications Jammed 85 | . . . . . . . 10 . 6 . . . . 1 . . . . . . 2 13 . . . . 10 29 12 2 Distress Signals 82 | . . . . . . . 10 . 5 . . . . 1 . . . . . . 2 13 . . . . 10 27 12 2 Times Spotted 570 | . 23 16 . 8 46 13 8 14 34 . 12 4 12 26 4 3 . 9 31 9 19 50 4 6 . 8 32 64 25 90 Peak Tracking Total 17 | . 5 3 . 2 5 3 5 3 3 . 3 4 3 6 3 3 . 3 6 3 5 4 3 3 . 2 4 8 5 17 Tactical Retreats 25 | . 3 . . . 3 2 . . . . . . . 1 . . . . 2 . . 2 . 1 . 1 1 . . 9 Traps | -11 -10 -10 -10 -9 -8 -8 -8 -8 -7 -7 -7 -7 -6 -6 -6 -6 -6 -5 -5 -5 -5 -4 -4 -4 -4 -3 -3 -2 -1 -1 ------- Run | Scr Mat Min Exi Min Mat Gar Mat Sto Fac Low Low Dat Pro Fac Low Low Zio Pro Fac Ext Cet Fac Upp Upp Zhi Pro Res Res Acc Com Traps Triggered 13 | . . . . . . . . . 2 . . . . . . . . . . . . 1 . . . . 2 2 . 6 Indirectly 2 | . . . . . . . . . . . . . . . . . . . . . . . . . . . . . . 2 Trap Hack Attempts . | . . . . . . . . . . . . . . . . . . . . . . . . . . . . . . . Triggered . | . . . . . . . . . . . . . . . . . . . . . . . . . . . . . . . Disarmed 12 | . . . . . . . . . . . . . . 4 . . . . . . . . . . . . . . . 8 Reprogrammed 96 | . . . . . 5 . 6 16 6 . . . . 8 . . . . 6 14 . 19 . . . . 16 . . . Reused 16 | . . . . . . . 5 . . . . . . 3 . . . . 2 1 . 4 . . . . 1 . . . Traps Extracted . | . . . . . . . . . . . . . . . . . . . . . . . . . . . . . . . Installed 1 | . . . . . . . . . . . . . . . . . . . . . . . 1 . . . . . . . Triggered 19 | . . . . . . . 5 . . 1 1 . . 3 . . . . 2 1 . 4 . . . . 2 . . . Machines | -11 -10 -10 -10 -9 -8 -8 -8 -8 -7 -7 -7 -7 -6 -6 -6 -6 -6 -5 -5 -5 -5 -4 -4 -4 -4 -3 -3 -2 -1 -1 ---------- Run | Scr Mat Min Exi Min Mat Gar Mat Sto Fac Low Low Dat Pro Fac Low Low Zio Pro Fac Ext Cet Fac Upp Upp Zhi Pro Res Res Acc Com Machines Disabled 25 | . . . . 1 . 1 . 8 . . 1 . . . . . . . . 2 3 2 . 1 . . 2 . . 4 Max in Single Turn 1 | . . . . . . 1 . 1 . . 1 . . . . . . . . 1 1 . . 1 . . . . . 1 Garrison Access 2 | . . . . . . . . 1 1 . . . . . . . . . . . . . . . . . . . . . Garrison Relay 1 | . . . . . . 1 . . . . . . . . . . . . . . . . . . . . . . . . Phase Generator 1 | . . . . . . . . . . . . . . . . . . . . . . . . . . . . . . 1 Machines Sabotaged . | . . . . . . . . . . . . . . . . . . . . . . . . . . . . . . . Garrisons Compromised . | . . . . . . . . . . . . . . . . . . . . . . . . . . . . . . . Overloaded Fab Kills . | . . . . . . . . . . . . . . . . . . . . . . . . . . . . . . . Fab Network Shutdowns 5 | . . . . . . . . . 1 . . . . 1 . . . . 1 . . 1 . . . . 1 . . . Hacking | -11 -10 -10 -10 -9 -8 -8 -8 -8 -7 -7 -7 -7 -6 -6 -6 -6 -6 -5 -5 -5 -5 -4 -4 -4 -4 -3 -3 -2 -1 -1 --------- Run | Scr Mat Min Exi Min Mat Gar Mat Sto Fac Low Low Dat Pro Fac Low Low Zio Pro Fac Ext Cet Fac Upp Upp Zhi Pro Res Res Acc Com Machines Accessed 202 | . 10 1 1 1 18 . 7 15 25 . 1 4 . 18 . . . . 13 16 4 15 . 2 5 1 19 12 10 4 Terminals 142 | . 8 1 . . 12 . 7 14 18 . 1 . . 10 . . . . 8 15 4 11 . . . 1 12 8 8 4 Fabricators 16 | . . . . . . . . . 3 . . . . 4 . . . . 3 . . 1 . . . . 2 2 1 . Repair Stations 2 | . . . . . 1 . . . . . . . . 1 . . . . . . . . . . . . . . . . Recycling Units 7 | . 2 . . . 2 . . . 1 . . . . . . . . . . 1 . . . . . . 1 . . . Scanalyzers 6 | . . . . . 2 . . . 1 . . . . 1 . . . . . . . 1 . . . . 1 . . . Garrison Access 16 | . . . . . 1 . . 1 2 . . . . 2 . . . . 2 . . 2 . . . . 3 2 1 . Total Hacks 968 | . 46 3 1 1 118 . 32 36 98 . 5 27 . 120 . . . . 79 70 17 88 . 2 17 7 96 49 41 15 Successful 849 | . 36 2 1 1 106 . 29 35 80 . 5 27 . 110 . . . . 75 69 17 77 . 2 17 7 81 39 22 11 Failed 119 | . 10 1 . . 12 . 3 1 18 . . . . 10 . . . . 4 1 . 11 . . . . 15 10 19 4 Catastrophic 7 | . . . . . 1 . . . . . . . . 1 . . . . . . . 2 . . . . . 1 2 . Database Lockouts . | . . . . . . . . . . . . . . . . . . . . . . . . . . . . . . . Manual 713 | . 43 3 1 . 92 . 27 29 73 . . . . 93 . . . . 51 59 18 76 . . . 1 73 34 31 9 Terminals 763 | . 42 3 . . 90 . 32 35 76 . 5 . . 98 . . . . 56 69 17 78 . . . 7 73 33 34 15 Fabricators 85 | . . . . . . . . . 11 . . . . 16 . . . . 21 . . 5 . . . . 13 14 5 . Repair Stations 6 | . . . . . 4 . . . . . . . . 2 . . . . . . . . . . . . . . . . Recycling Units 16 | . 4 . . . 4 . . . 2 . . . . . . . . . . 1 . . . . . . 5 . . . Scanalyzers 28 | . . . . . 17 . . . 5 . . . . 2 . . . . . . . 2 . . . . 2 . . . Garrison Access 22 | . . . . . 3 . . 1 4 . . . . 2 . . . . 2 . . 3 . . . . 3 2 2 . Terminal Hacks 523 | . 23 1 1 1 57 . 19 19 38 . 5 27 . 75 . . . . 43 47 10 54 . 2 17 6 47 15 11 5 Record 34 | . . . . . . . . . . . 5 11 . . . . . . . . 5 . . 1 6 6 . . . . Part Schematic 72 | . 4 . . . 5 . 1 1 7 . . 8 . 13 . . . . 6 . . 9 . . 4 . 13 . 1 . Robot Schematic 11 | . 2 . . . . . . 1 . . . 5 . . . . . . . . . 3 . . . . . . . . Robot Analysis 97 | . 12 . . . 13 . 4 4 14 . . . . 16 . . . . 10 . . 6 . . 3 . 10 5 . . Prototype ID Bank 144 | . 5 1 . . 31 . 9 3 4 . . 3 . 26 . . . . 11 26 . 11 . . 4 . 10 . . . Open Door 13 | . . . . 1 . . . 1 . . . . . . . . . . . 5 1 . . 1 . . . . 3 1 Level Access Points 2 | . . . . . . . . . . . . . . . . . . . . . . . . . . . 1 1 . . Branch Access Points 5 | . . . . . . . . . . . . . . 1 . . . . 1 . . 1 . . . . 1 1 . . Machine Index 8 | . . . . . . . 1 . 1 . . . . 1 . . . . 1 1 . 1 . . . . 1 1 . . Scanalyzer Index 1 | . . . . . . . . . . . . . . . . . . . 1 . . . . . . . . . . . Unreport Threat 65 | . . . . . 5 . 2 3 7 . . . . 8 . . . . 4 5 4 11 . . . . 5 3 7 1 Locate Traps 1 | . . . . . . . . . . . . . . . . . . . . . . 1 . . . . . . . . Disarm Traps 6 | . . . . . . . . . 1 . . . . 1 . . . . . 1 . 1 . . . . . . . 2 Reprogram Traps 26 | . . . . . 2 . 1 4 2 . . . . 2 . . . . 1 5 . 5 . . . . 3 1 . . Dispatch Records 7 | . . . . . . . . . . . . . . . . . . . 3 1 . 1 . . . . 1 1 . . Security Status 2 | . . . . . . . . . . . . . . . . . . . . 1 . 1 . . . . . . . . Transport Status 2 | . . . . . . . . . . . . . . 2 . . . . . . . . . . . . . . . . Intercept Status 1 | . . . . . . . . . . . . . . . . . . . . 1 . . . . . . . . . . Recall Investigation 1 | . . . . . . . . . . . . . . . . . . . 1 . . . . . . . . . . . Recall Extermination 6 | . . . . . . . . . . . . . . 2 . . . . 2 . . . . . . . 1 1 . . Recall Reinforcements 2 | . . . . . . . . . 1 . . . . 1 . . . . . . . . . . . . . . . . Hauler Manifests 12 | . . . . . 1 . 1 2 1 . . . . 2 . . . . 1 1 . 1 . . . . 1 1 . . Registered Prototypes 2 | . . . . . . . . . . . . . . . . . . . 1 . . 1 . . . . . . . . Zone Layout 1 | . . . . . . . . . . . . . . . . . . . . . . 1 . . . . . . . . EX-Prototype ID Bank 1 | . . . 1 . . . . . . . . . . . . . . . . . . . . . . . . . . . Disengage Seal 1 | . . . . . . . . . . . . . . . . . . . . . . . . . . . . . . 1 Fabricator Hacks 60 | . . . . . . . . . 7 . . . . 11 . . . . 16 . . 3 . . . . 10 11 2 . Network Status 5 | . . . . . . . . . 1 . . . . . . . . . 3 . . . . . . . . 1 . . Load Schematic 23 | . . . . . . . . . 3 . . . . 4 . . . . 7 . . 1 . . . . 4 3 1 . Build 32 | . . . . . . . . . 3 . . . . 7 . . . . 6 . . 2 . . . . 6 7 1 . Repair Station Hacks 6 | . . . . . 4 . . . . . . . . 2 . . . . . . . . . . . . . . . . Scan Component 3 | . . . . . 2 . . . . . . . . 1 . . . . . . . . . . . . . . . . Repair 3 | . . . . . 2 . . . . . . . . 1 . . . . . . . . . . . . . . . . Recycling Unit Hacks 8 | . 1 . . . 2 . . . 2 . . . . . . . . . . 1 . . . . . . 2 . . . Report Inventory 6 | . . . . . 2 . . . 1 . . . . . . . . . . 1 . . . . . . 2 . . . Retrieve Components 2 | . 1 . . . . . . . 1 . . . . . . . . . . . . . . . . . . . . . Scanalyzer 26 | . . . . . 15 . . . 5 . . . . 2 . . . . . . . 2 . . . . 2 . . . Insert Component 12 | . . . . . 7 . . . 2 . . . . 1 . . . . . . . 1 . . . . 1 . . . Analyze 14 | . . . . . 8 . . . 3 . . . . 1 . . . . . . . 1 . . . . 1 . . . Garrison Access Hacks 3 | . . . . . 1 . . 1 1 . . . . . . . . . . . . . . . . . . . . . Unlock Access 1 | . . . . . 1 . . . . . . . . . . . . . . . . . . . . . . . . . Seal Access 2 | . . . . . . . . 1 1 . . . . . . . . . . . . . . . . . . . . . Unauthorized Hacks 223 | . 12 1 . . 27 . 10 15 27 . . . . 20 . . . . 16 21 7 18 . . . 1 20 13 9 6 Terminals 173 | . 10 1 . . 21 . 10 15 20 . . . . 13 . . . . 9 21 7 13 . . . 1 11 8 7 6 Track 2 | . . . . . . . . . . . . . . . . . . . . . . 1 . . . . . . . 1 Assimilate 21 | . . . . . 4 . 2 1 5 . . . . 2 . . . . 2 2 . 2 . . . . . . 1 . Botnet 123 | . 8 . . . 12 . 6 13 15 . . . . 9 . . . . 6 14 4 8 . . . . 11 7 6 4 Disrupt 21 | . 2 1 . . 4 . 1 . . . . . . 1 . . . . 1 4 3 1 . . . 1 . 1 . 1 Operators 6 | . . . . . 1 . 1 1 . . . . . 1 . . . . . 1 . 1 . . . . . . . . Fabricators 23 | . . . . . . . . . 4 . . . . 5 . . . . 5 . . 2 . . . . 3 3 1 . Report 7 | . . . . . . . . . 1 . . . . 1 . . . . 2 . . 1 . . . . 1 1 . . Prioritize 1 | . . . . . . . . . . . . . . . . . . . . . . . . . . . . . 1 . Siphon 15 | . . . . . . . . . 3 . . . . 4 . . . . 3 . . 1 . . . . 2 2 . . Repair Stations . | . . . . . . . . . . . . . . . . . . . . . . . . . . . . . . . Recycling Units 7 | . 2 . . . 2 . . . . . . . . . . . . . . . . . . . . . 3 . . . Monitor 1 | . . . . . . . . . . . . . . . . . . . . . . . . . . . 1 . . . Reject 1 | . . . . . . . . . . . . . . . . . . . . . . . . . . . 1 . . . Recyclers 1 | . . . . . . . . . . . . . . . . . . . . . . . . . . . 1 . . . Tunnel 4 | . 2 . . . 2 . . . . . . . . . . . . . . . . . . . . . . . . . Scanalyzers 2 | . . . . . 2 . . . . . . . . . . . . . . . . . . . . . . . . . Extract 2 | . . . . . 2 . . . . . . . . . . . . . . . . . . . . . . . . . Garrison Access 18 | . . . . . 2 . . . 3 . . . . 2 . . . . 2 . . 3 . . . . 3 2 1 . Reprogram 18 | . . . . . 2 . . . 3 . . . . 2 . . . . 2 . . 3 . . . . 3 2 1 . Data Cores Recovered . | . . . . . . . . . . . . . . . . . . . . . . . . . . . . . . . Used . | . . . . . . . . . . . . . . . . . . . . . . . . . . . . . . . Hacking Detections 128 | . 9 1 . . 14 . 7 7 23 . 1 . . 10 . . . . 6 6 2 7 . . . 1 13 9 9 3 Full Trace Events 19 | . 8 1 . . 5 . . . 2 . 1 . . . . . . . 1 . . . . . . . . 1 . . Feedback Events 3 | . 2 . . . . . . . 1 . . . . . . . . . . . . . . . . . . . . . Corruption 2 | . 2 . . . . . . . . . . . . . . . . . . . . . . . . . . . . . Hackware Fried 1 | . . . . . . . . . 1 . . . . . . . . . . . . . . . . . . . . . Feedback Blocked . | . . . . . . . . . . . . . . . . . . . . . . . . . . . . . . . Robot Schematics Acquired 11 | . 2 . . . . . . 1 . . . 5 . . . . . . . . . 3 . . . . . . . . Robots Built . | . . . . . . . . . . . . . . . . . . . . . . . . . . . . . . . Matter . | . . . . . . . . . . . . . . . . . . . . . . . . . . . . . . . Time . | . . . . . . . . . . . . . . . . . . . . . . . . . . . . . . . Total Robot Build Rating . | . . . . . . . . . . . . . . . . . . . . . . . . . . . . . . . Part Schematics Acquired 94 | . 4 . . . 23 . 1 1 9 . . 8 . 13 . . . . 6 . . 10 . . 4 . 14 . 1 . Parts Built 32 | . . . . . . . . . 3 . . . . 6 . . . . 7 . . 4 . . . . 5 6 1 . Matter 7287 | . . . . . . . . . 567 . . . . 1328 . . . . 1315 . . 576 . . . . 1512 1572 417 . Time 2983 | . . . . . . . . . 268 . . . . 861 . . . . 462 . . 408 . . . . 358 552 74 . Total Part Build Rating 216 | . . . . . . . . . 12 . . . . 32 . . . . 42 . . 32 . . . . 43 46 9 . Parts Repaired 3 | . . . . . 2 . . . . . . . . 1 . . . . . . . . . . . . . . . . Time 141 | . . . . . 106 . . . . . . . . 35 . . . . . . . . . . . . . . . . Parts Recycled . | . . . . . . . . . . . . . . . . . . . . . . . . . . . . . . . Recycled Matter . | . . . . . . . . . . . . . . . . . . . . . . . . . . . . . . . Retrieved Matter . | . . . . . . . . . . . . . . . . . . . . . . . . . . . . . . . Retrieved Components 12 | . 10 . . . . . . . 2 . . . . . . . . . . . . . . . . . . . . . Parts Scanalyzed 12 | . . . . . 7 . . . 2 . . . . 1 . . . . . . . 1 . . . . 1 . . . Part Schematics Acquired 12 | . . . . . 7 . . . 2 . . . . 1 . . . . . . . 1 . . . . 1 . . . Parts Damaged 3 | . . . . . 2 . . . . . . . . 1 . . . . . . . . . . . . . . . . Bothacking | -11 -10 -10 -10 -9 -8 -8 -8 -8 -7 -7 -7 -7 -6 -6 -6 -6 -6 -5 -5 -5 -5 -4 -4 -4 -4 -3 -3 -2 -1 -1 ------------ Run | Scr Mat Min Exi Min Mat Gar Mat Sto Fac Low Low Dat Pro Fac Low Low Zio Pro Fac Ext Cet Fac Upp Upp Zhi Pro Res Res Acc Com Used RIF Installer 1 | . . . . . . 1 . . . . . . . . . . . . . . . . . . . . . . . . Robots Hacked 6 | . . . . . . . . . . . . . . . . . . . . 1 1 . . . 3 . . . . 1 Non-combat . | . . . . . . . . . . . . . . . . . . . . . . . . . . . . . . . Combat 6 | . . . . . . . . . . . . . . . . . . . . 1 1 . . . 3 . . . . 1 Robot Hacks Applied 6 | . . . . . . . . . . . . . . . . . . . . 1 1 . . . 3 . . . . 1 parse_system 6 | . . . . . . . . . . . . . . . . . . . . 1 1 . . . 3 . . . . 1 Manual 1 | . . . . . . . . . . . . . . . . . . . . . . . . . . . . . . 1 Relay Couplers Released 5 | . . . . . . 2 . . 2 . . . . . . . . . . . . . . . . . . 1 . . Machine Destruction 2 | . . . . . . 2 . . . . . . . . . . . . . . . . . . . . . . . . Programmers 3 | . . . . . . . . . 2 . . . . . . . . . . . . . . . . . . 1 . . Robots Rewired 2 | . . . . . . . . 1 . . . . 1 . . . . . . . . . . . . . . . . . Allies Hacked 9 | . . . . . . . . . . . . . 1 . . . . . 1 . 2 3 . . . 1 . . . 1 Hacks Repelled . | . . . . . . . . . . . . . . . . . . . . . . . . . . . . . . . Allies | -11 -10 -10 -10 -9 -8 -8 -8 -8 -7 -7 -7 -7 -6 -6 -6 -6 -6 -5 -5 -5 -5 -4 -4 -4 -4 -3 -3 -2 -1 -1 -------- Run | Scr Mat Min Exi Min Mat Gar Mat Sto Fac Low Low Dat Pro Fac Low Low Zio Pro Fac Ext Cet Fac Upp Upp Zhi Pro Res Res Acc Com Total Allies 72 | . . 3 . 2 6 . 2 11 8 . . . 1 3 . . . . 4 10 . 12 . . . 1 5 3 1 . Largest Group 17 | . . 3 3 5 5 3 5 15 17 10 10 10 8 8 8 8 8 8 9 14 13 12 5 5 5 5 6 4 4 3 Highest-Rated Group 526 | . . 40 40 85 79 46 66 223 265 164 164 164 164 191 160 160 160 160 242 526 516 490 170 170 170 170 174 173 148 79 Highest-Rated Ally 156 | . . 16 16 31 26 26 26 29 54 26 26 26 30 41 26 26 26 26 54 156 156 156 54 54 54 54 56 69 69 44 Total Orders 392 | . . . . 1 30 4 5 38 43 . 7 4 13 43 6 2 . 7 49 11 12 21 7 6 3 3 26 17 22 12 STAY 80 | . . . . 1 11 1 2 18 8 . . . 2 3 1 . . 1 10 2 2 4 2 . 1 . 6 1 2 2 GOTO 151 | . . . . . 7 2 1 11 16 . 4 4 5 24 2 1 . 3 14 4 5 8 1 4 1 2 8 8 10 6 FOLLOW 161 | . . . . . 12 1 2 9 19 . 3 . 6 16 3 1 . 3 25 5 5 9 4 2 1 1 12 8 10 4 Ally Attacks 367 | . . . . 6 23 . . 24 92 . . . 1 9 . . . . 7 8 47 73 4 5 . 4 45 8 11 . Total Damage 7482 | . . . . 63 414 . . 298 1341 . . . 34 226 . . . . 121 312 909 1545 237 66 . 188 877 333 518 . Kills 69 | . . . . 1 3 . . 5 14 . . . 1 3 . . . . 1 6 12 8 1 3 . 1 3 4 3 . Allies Corrupted 2 | . . . . . . . . . . . . . 1 . . . . . . . . 1 . . . . . . . . Allies Melted . | . . . . . . . . . . . . . . . . . . . . . . . . . . . . . . . Intel | -11 -10 -10 -10 -9 -8 -8 -8 -8 -7 -7 -7 -7 -6 -6 -6 -6 -6 -5 -5 -5 -5 -4 -4 -4 -4 -3 -3 -2 -1 -1 ------- Run | Scr Mat Min Exi Min Mat Gar Mat Sto Fac Low Low Dat Pro Fac Low Low Zio Pro Fac Ext Cet Fac Upp Upp Zhi Pro Res Res Acc Com Robot Analysis Total 97 | . 12 . . . 13 . 4 4 14 . . . . 16 . . . . 10 . . 6 . . 3 . 10 5 . . Derelict Logs Recovered 14 | . . . . 1 . . . . . 1 1 . 2 . 2 1 1 2 . . . . 1 2 . . . . . . Drone Launches 19 | . . . . . . . . 8 . . . . . 2 . . . . 3 . . 6 . . . . . . . . Drone Recoveries . | . . . . . . . . . . . . . . . . . . . . . . . . . . . . . . . Exploration | -11 -10 -10 -10 -9 -8 -8 -8 -8 -7 -7 -7 -7 -6 -6 -6 -6 -6 -5 -5 -5 -5 -4 -4 -4 -4 -3 -3 -2 -1 -1 ------------- Run | Scr Mat Min Exi Min Mat Gar Mat Sto Fac Low Low Dat Pro Fac Low Low Zio Pro Fac Ext Cet Fac Upp Upp Zhi Pro Res Res Acc Com Turns Passed 15729 | 35 720 403 149 239 1148 201 152 592 1270 88 194 46 221 1606 201 118 41 439 1556 399 572 1083 283 152 65 150 1152 1233 357 864 Spaces Moved 26676 | 31 665 601 219 438 1790 217 306 807 3036 290 522 105 564 2433 391 398 131 452 2034 563 881 1638 539 527 215 388 2014 1990 909 1582 Core 14 | 14 . . . . . . . . . . . . . . . . . . . . . . . . . . . . . . Treads . | . . . . . . . . . . . . . . . . . . . . . . . . . . . . . . . Legs . | . . . . . . . . . . . . . . . . . . . . . . . . . . . . . . . Wheels 380 | 17 363 . . . . . . . . . . . . . . . . . . . . . . . . . . . . . Hover . | . . . . . . . . . . . . . . . . . . . . . . . . . . . . . . . Flight 26282 | . 302 601 219 438 1790 217 306 807 3036 290 522 105 564 2433 391 398 131 452 2034 563 881 1638 539 527 215 388 2014 1990 909 1582 Fastest Speed 5 | 50 31 28 28 28 24 24 24 20 11 20 11 11 11 5 5 5 20 5 5 5 5 5 5 5 20 5 5 5 5 5 Average Speed 21 | 76 57 28 28 28 27 24 24 22 19 20 19 17 19 19 19 19 20 18 19 19 19 18 18 18 20 19 19 19 18 19 Slowest Speed 100 | 100 80 31 28 28 28 24 24 24 87 20 20 20 20 20 20 20 20 20 20 20 20 20 20 20 20 20 20 89 20 20 Overloaded Moves 1193 | . . . . . . . . . 166 . 48 30 42 147 15 5 . 48 65 33 57 104 37 43 . 25 83 80 85 80 Propulsion Burnouts . | . . . . . . . . . . . . . . . . . . . . . . . . . . . . . . . Robots Hopped 199 | . 3 1 . 1 . . . . 5 1 . 2 . 45 . . . . 34 6 1 23 1 2 . . 16 39 9 10 Cave-ins Triggered 1 | . . . . . . . . . . . . . . . . . . . . 1 . . . . . . . . . . Teleports 1 | . . . . . . . . . . . . . . . . . . . . . . . . . 1 . . . . . Exploration Rate (%) 59 | 3 86 95 62 86 92 39 33 89 73 58 70 77 70 41 68 67 13 72 29 69 96 44 67 67 61 62 42 39 20 58 Regions Visited 30 Branch Regions 19 Pre-discovered Areas 15 | . 2 1 . 1 2 . . . . 1 . 1 . . . . . 2 . . . . . 1 3 1 . . . . Known Exits Taken 29 | 1 1 1 1 1 1 . 1 1 1 1 1 1 1 1 1 1 1 1 1 1 1 1 1 1 1 1 1 1 1 . Unknown Exits Taken . | . . . . . . . . . . . . . . . . . . . . . . . . . . . . . . . Scrap Searched 21 | . . . . . . . . . . 3 1 . 1 . 3 1 . 3 . . . . 4 3 . 2 . . . . Spaces Dug 60 | . . . . . 9 1 1 3 1 . . . . 10 . . . . 7 9 . 6 . . . . 2 2 4 5 Terrain Destroyed 152 | . . . . . 9 1 1 3 1 . . . . 10 . . . . 7 27 . 6 . . . . 2 2 4 79 Melee 60 | . . . . . 9 1 1 3 1 . . . . 10 . . . . 7 9 . 6 . . . . 2 2 4 5 Projectile 19 | . . . . . . . . . . . . . . . . . . . . 18 . . . . . . . . . 1 AOE 73 | . . . . . . . . . . . . . . . . . . . . . . . . . . . . . . 73 Actions | -11 -10 -10 -10 -9 -8 -8 -8 -8 -7 -7 -7 -7 -6 -6 -6 -6 -6 -5 -5 -5 -5 -4 -4 -4 -4 -3 -3 -2 -1 -1 --------- Run | Scr Mat Min Exi Min Mat Gar Mat Sto Fac Low Low Dat Pro Fac Low Low Zio Pro Fac Ext Cet Fac Upp Upp Zhi Pro Res Res Acc Com Total 35493 | 37 874 779 305 538 2324 330 378 1146 3654 318 597 129 648 3494 511 431 145 785 3106 818 1267 2335 712 573 233 454 2719 2751 1067 2035 Wait 6581 | . 54 99 87 68 321 71 60 229 422 30 31 19 19 1006 108 19 13 292 980 180 294 515 152 21 10 38 571 656 102 114 Move 26269 | 30 658 598 218 435 1789 216 305 806 3025 287 521 101 563 2348 390 397 130 451 1973 550 878 1592 536 523 214 387 1981 1915 891 1561 Hop 175 | . 3 1 . 1 . . . . 5 1 . 1 . 39 . . . . 26 5 1 22 1 1 . . 16 34 8 10 Pick Up 55 | . 2 . . 3 6 . 1 6 3 . . 2 . . . . . 2 6 3 1 4 1 1 . . 3 2 . 9 Fast Attach 107 | 5 9 4 . 3 10 . 1 2 9 . . 2 1 9 . . . . 5 2 3 10 . 3 3 1 3 6 1 15 Attach 16 | . . . . . 5 . 1 2 1 . . . . 2 . . . . . 1 1 . 1 . . . . 1 . 1 Detach 33 | . . 1 . . 7 . 1 . 6 . . 2 . 5 . . . . . 2 2 1 1 . . 1 1 2 . 1 Swap 108 | . 1 1 . . 7 . . 9 13 . . . . 4 . 1 1 4 5 11 6 6 . 1 2 2 10 7 1 16 Drop 137 | . 6 2 . 5 16 . 1 8 14 . . 1 . 7 . . 1 2 12 5 2 13 . 4 1 1 6 5 2 23 Fire 274 | 2 122 53 . . . . . 47 . . . . . . . . . . . 23 3 . . . 3 . . . . 21 Melee 1110 | . . . . 17 129 35 6 23 81 . 30 1 44 53 7 8 . 22 71 25 46 114 11 10 . 16 74 88 40 159 Ram . | . . . . . . . . . . . . . . . . . . . . . . . . . . . . . . . Kick . | . . . . . . . . . . . . . . . . . . . . . . . . . . . . . . . Crush . | . . . . . . . . . . . . . . . . . . . . . . . . . . . . . . . Escape Stasis 140 | . . . . . . . . . 43 . . . . . . . . . . 1 . . . . . . 36 5 . 55 Rewire 11 | . . . . . . . . 2 . . . . 1 . . . . . . . 2 . . . . . . 6 . . Trap 1 | . . . . . . . . . . . . . . . . . . . . . . . 1 . . . . . . . Miscellaneous 476 | . 19 20 . 6 34 8 2 12 32 . 15 . 20 21 6 6 . 12 28 10 28 58 8 9 . 8 18 24 22 50 Route ------- -11/Scrapyard -10/Materials (discovered 4 exits: *Mat x2 / *Min x2) -10/Mines (discovered 3 exits: *Mat x2 / *Exi) -10/Exiles (discovered 2 exits: *Min x2) -9/Mines (discovered 2 exits: *Mat x2) -8/Materials (discovered 5 exits: *Fac x3 / *Sto / Gar) -8/Garrison -8/Materials (discovered 2 exits: *Fac / *Sto) -8/Storage (discovered 2 exits: *Fac / Rec) -7/Factory (discovered 6 exits: *Fac x4 / *Low x2) -7/Lower Caves -7/Lower Caves (discovered 2 exits: *Fac / *Dat) -7/Data Miner -6/Proximity Caves -6/Factory (discovered 3 exits: *Fac / *Low x2) -6/Lower Caves -6/Lower Caves (discovered 2 exits: *Fac / *Zio) -6/Zion -5/Proximity Caves -5/Factory (discovered 7 exits: *Fac x3 / Upp x2 / *Ext x2) -5/Extension (discovered 3 exits: *Fac x2 / *Cet) -5/Cetus (discovered 3 exits: *Fac x2 / *Arc) -4/Factory (discovered 4 exits: *Res x2 / *Upp x2) -4/Upper Caves -4/Upper Caves -4/Zhirov -3/Proximity Caves -3/Research (discovered 6 exits: *Res x3 / Arm / Tes x2) -2/Research (discovered 5 exits: *Acc x3 / Qua x2) -1/Access -1/Command (discovered 2 exits: *Sur x2) 0b11 Command History --------- Turn | Location | Event 9 | -11/Scrapyard | Identified exit to Materials 9 | -11/Scrapyard | Discovered exit to Materials (range 16) 20 | -11/Scrapyard | Upgraded with Propulsion slot (x2) 20 | -11/Scrapyard | Upgraded with Utility slot (x1) 36 | -11/Scrapyard | Entered Materials 194 | -10/Materials | Upgraded with Utility slot (x1) 235 | -10/Materials | Identified exit to Mines 235 | -10/Materials | Discovered exit to Mines (range 16) 383 | -10/Materials | Identified exit to Materials 383 | -10/Materials | Discovered exit to Materials (range 15) 455 | -10/Materials | Reached level 2 489 | -10/Materials | Build established: Scavenger-Mutant 582 | -10/Materials | Upgraded with Propulsion slot (x1) 613 | -10/Materials | Upgraded with Utility slot (x1) 627 | -10/Materials | Discovered exit to Materials (range 16) 749 | -10/Materials | Discovered exit to Mines (range 15) 756 | -10/Materials | Entered Mines 758 | -10/Mines | Reached level 3 767 | -10/Mines | Met a Derelict bent on vengeance 798 | -10/Mines | Upgraded with Propulsion slot (x1) 798 | -10/Mines | Upgraded with Utility slot (x1) 832 | -10/Mines | Found a damaged Exp. Sensor Array with a note attached 859 | -10/Mines | Build established: Scavenger-Scout 865 | -10/Mines | Found Prototype Device 865 | -10/Mines | Identified Exp. Sensor Array 885 | -10/Mines | Assembled infested the area 967 | -10/Mines | Discovered exit to Materials (range 12) 1018 | -10/Mines | Discovered exit to Materials (range 3) 1019 | -10/Mines | Assisted by bots powering up and referring to "LRC-V3" 1021 | -10/Mines | Identified exit to Exiles 1021 | -10/Mines | Discovered exit to Exiles (range 11) 1114 | -10/Mines | Deemed a non-threat by the Exiles lab entrance 1159 | -10/Mines | Entered Exiles 1159 | -10/Exiles | Accompanied by 3 allies 1163 | -10/Exiles | Identified exit to Mines 1163 | -10/Exiles | Discovered exit to Mines (range 15) 1167 | -10/Exiles | Met 8R-AWN 1172 | -10/Exiles | Met EX-HEX 1179 | -10/Exiles | Met EX-BIN 1183 | -10/Exiles | Aligned with FarCom system 1183 | -10/Exiles | Given EX-Vault access code 1190 | -10/Exiles | Opened EX-Vault 1198 | -10/Exiles | Warned to stay clear of 0b10 Research branches 1207 | -10/Exiles | Met EX-DEC 1218 | -10/Exiles | Discovered exit to Mines (range 10) 1308 | -10/Exiles | Entered Mines 1308 | -9/Mines | Accompanied by 3 allies 1310 | -9/Mines | Reached level 4 1310 | -9/Mines | A weapon hastily lodged in a ceiling crevice suddenly fell to the ground 1327 | -9/Mines | Joined a pair of Derelicts in attacking an 0b10 outpost 1359 | -9/Mines | Identified exit to Materials 1359 | -9/Mines | Discovered exit to Materials (range 9) 1391 | -9/Mines | Discovered exit to Materials (range 15) 1449 | -9/Mines | Met a Derelict shopkeep closing up shop 1547 | -9/Mines | Entered Materials 1547 | -8/Materials | Accompanied by 3 allies 1549 | -8/Materials | Reached level 5 1549 | -8/Materials | Reached level 6 1549 | -8/Materials | Reached level 7 1617 | -8/Materials | Upgraded with Power slot (x1) 1649 | -8/Materials | Identified exit to Factory 1649 | -8/Materials | Discovered exit to Factory (range 15) 1781 | -8/Materials | Reached level 8 1963 | -8/Materials | Identified exit to Garrison 1967 | -8/Materials | Upgraded with Utility slot (x1) 2014 | -8/Materials | Reached level 9 2050 | -8/Materials | Discovered exit to Factory (range 10) 2114 | -8/Materials | Upgraded with Utility slot (x1) 2154 | -8/Materials | Upgraded with Utility slot (x1) 2313 | -8/Materials | Reached level 10 2364 | -8/Materials | Discovered exit to Factory (range 4) 2427 | -8/Materials | Repaired Broken Adv. Terrain Scanner 2446 | -8/Materials | Identified exit to Storage 2446 | -8/Materials | Discovered exit to Storage (range 7) 2630 | -8/Materials | Repaired Broken Lgt. Deuterium Engine 2695 | -8/Materials | Entered Garrison 2695 | -8/Garrison | Accompanied by 3 allies 2695 | -8/Garrison | Reached level 11 2727 | -8/Garrison | Build established: Hacker-Ninja 2800 | -8/Garrison | Triggered checkpoint 2849 | -8/Garrison | Identified exit to Materials 2849 | -8/Garrison | Discovered exit to Materials (range 17) 2864 | -8/Garrison | Installed Relay Interface Framework 2876 | -8/Garrison | Triggered checkpoint 2889 | -8/Garrison | Garrison Relay disabled 2896 | -8/Garrison | Entered Materials 2896 | -8/Materials | Accompanied by 3 allies 2903 | -8/Materials | Upgraded with Utility slot (x1) 2993 | -8/Materials | Reached level 12 3027 | -8/Materials | Discovered exit to Factory (range 9) 3037 | -8/Materials | Discovered exit to Storage (range 13) 3048 | -8/Materials | Entered Storage 3048 | -8/Storage | Accompanied by 4 allies 3054 | -8/Storage | Assisted by bots powering up and referring to "LRC-V3" 3308 | -8/Storage | Discovered exit to Factory (range 11) 3433 | -8/Storage | Identified exit to Recycling 3433 | -8/Storage | Discovered exit to Recycling (range 16) 3440 | -8/Storage | Reached level 13 3445 | -8/Storage | Upgraded with Power slot (x1) 3458 | -8/Storage | Upgraded with Propulsion slot (x1) 3640 | -8/Storage | Entered Factory 3640 | -7/Factory | Accompanied by 22 allies 3642 | -7/Factory | Reached level 14 3849 | -7/Factory | Hacking Suite fried by hacking feedback 3855 | -7/Factory | Build established: Commander-Ninja 3926 | -7/Factory | Fabricated Cld. VTOL Module (x1) 3932 | -7/Factory | Fabricated Cld. VTOL Module? 3992 | -7/Factory | Fabricated Cld. VTOL Module (x1) 4014 | -7/Factory | Identified exit to Lower Caves 4014 | -7/Factory | Discovered exit to Lower Caves (range 3) 4030 | -7/Factory | Identified exit to Factory 4030 | -7/Factory | Discovered exit to Factory (range 12) 4048 | -7/Factory | Local fabrication network quarantined 4269 | -7/Factory | Reached level 15 4356 | -7/Factory | Discovered exit to Factory (range 14) 4594 | -7/Factory | Discovered exit to Lower Caves (range 17) 4650 | -7/Factory | Discovered exit to Factory (range 6) 4723 | -7/Factory | Reached level 16 4768 | -7/Factory | Discovered exit to Factory (range 20) 4893 | -7/Factory | Build established: Hacker-Ninja 4910 | -7/Factory | Entered Lower Caves 4910 | -7/Lower Caves | Accompanied by 18 allies 4926 | -7/Lower Caves | Learned location of Zion (-6) 4963 | -7/Lower Caves | Identified exit to Lower Caves 4963 | -7/Lower Caves | Discovered exit to Lower Caves (range 12) 4998 | -7/Lower Caves | Entered another Lower Caves area 4998 | -7/Lower Caves | Accompanied by 18 allies 5034 | -7/Lower Caves | Discovered exit to Factory (range 7) 5044 | -7/Lower Caves | Encountered a Warlord checkpoint 5045 | -7/Lower Caves | Identified exit to Data Miner 5137 | -7/Lower Caves | Attracted the attention of an 0b10 base 5177 | -7/Lower Caves | Learned location of 1 exit from Proximity Caves 5177 | -7/Lower Caves | Learned location of 1 exit from Research 5177 | -7/Lower Caves | Learned Research security intel 5177 | -7/Lower Caves | Learned Extension terminal intel 5192 | -7/Lower Caves | Entered Data Miner 5192 | -7/Data Miner | Accompanied by 18 allies 5192 | -7/Data Miner | Identified exit to Proximity Caves 5192 | -7/Data Miner | Discovered exit to Proximity Caves (range 6) 5196 | -7/Data Miner | Met Data Miner 5197 | -7/Data Miner | Build established: Hacker-Sprinter 5200 | -7/Data Miner | Learned location of Section 7 (-2) 5200 | -7/Data Miner | Acquired the access code to Warlord's prototype stash 5204 | -7/Data Miner | Received God Mode back door access code from Data Miner 5226 | -7/Data Miner | Destroyed Data Miner 5228 | -7/Data Miner | Found Prototype Hackware 5228 | -7/Data Miner | Identified Ghost Barrier 5230 | -7/Data Miner | Found Prototype Hackware 5230 | -7/Data Miner | Identified Deep Network Scanner 5232 | -7/Data Miner | Found Prototype Hackware 5232 | -7/Data Miner | Data Conduit disabled 5234 | -7/Data Miner | Found Prototype Hackware 5238 | -7/Data Miner | Entered Proximity Caves 5238 | -6/Proximity Caves | Accompanied by 14 allies 5240 | -6/Proximity Caves | Reached level 17 5240 | -6/Proximity Caves | Upgraded with Utility slot (x1) 5341 | -6/Proximity Caves | Destroyed 8 combat bots 5375 | -6/Proximity Caves | Reached level 18 5409 | -6/Proximity Caves | Learned Factory stockpile data 5411 | -6/Proximity Caves | Learned Factory stockpile data 5421 | -6/Proximity Caves | Attracted the attention of an 0b10 checkpoint 5459 | -6/Proximity Caves | Entered Factory 5459 | -6/Factory | Accompanied by 14 allies 5575 | -6/Factory | Identified Quantum Router 5621 | -6/Factory | Identified System Mapper 5642 | -6/Factory | Identified exit to Lower Caves 5642 | -6/Factory | Discovered exit to Lower Caves (range 15) 5756 | -6/Factory | Build established: Wizard-Ninja 5767 | -6/Factory | Reached level 19 5826 | -6/Factory | Fabricated Cld. Cesium-ion Thruster (x1) 5872 | -6/Factory | Identified exit to Factory 5872 | -6/Factory | Discovered exit to Factory (range 19) 5978 | -6/Factory | Fabricated Cld. Cesium-ion Thruster (x1) 6036 | -6/Factory | Repaired Broken Imp. Transmission Jammer 6130 | -6/Factory | Fabricated Cld. Cesium-ion Thruster (x1) 6282 | -6/Factory | Fabricated Cld. Cesium-ion Thruster (x1) 6399 | -6/Factory | Upgraded with Utility slot (x1) 6493 | -6/Factory | Destroyed 9 combat bots 6583 | -6/Factory | Fabricated Cld. Nuclear Pulse Thruster? 6664 | -6/Factory | Fabricated Cld. Nuclear Pulse Thruster? 6869 | -6/Factory | Local fabrication network quarantined 7065 | -6/Factory | Entered Lower Caves 7065 | -6/Lower Caves | Accompanied by 16 allies 7075 | -6/Lower Caves | Encountered a Warlord checkpoint 7088 | -6/Lower Caves | Attracted the attention of an 0b10 checkpoint 7105 | -6/Lower Caves | Identified exit to Lower Caves 7266 | -6/Lower Caves | Entered another Lower Caves area 7266 | -6/Lower Caves | Accompanied by 16 allies 7267 | -6/Lower Caves | Encountered a Warlord checkpoint 7269 | -6/Lower Caves | Discovered exit to Factory (range 10) 7305 | -6/Lower Caves | Learned 8 Factory zone layouts 7359 | -6/Lower Caves | Build established: Wizard-Sprinter 7362 | -6/Lower Caves | Identified exit to Zion 7362 | -6/Lower Caves | Discovered exit to Zion (range 14) 7384 | -6/Lower Caves | Entered Zion 7384 | -6/Zion | Accompanied by 16 allies 7386 | -6/Zion | Reached level 20 7397 | -6/Zion | Given A8's code to call for help 7408 | -6/Zion | Identified exit to Proximity Caves 7408 | -6/Zion | Discovered exit to Proximity Caves (range 9) 7408 | -6/Zion | Learned Factory emergency access door positions 7425 | -6/Zion | Entered Proximity Caves 7425 | -5/Proximity Caves | Accompanied by 16 allies 7619 | -5/Proximity Caves | Received a Behemoth hack from an annoying Tinkerer 7793 | -5/Proximity Caves | Reached level 21 7819 | -5/Proximity Caves | Discovered exit to Factory (range 18) 7824 | -5/Proximity Caves | Learned location of Warlord (-5) 7864 | -5/Proximity Caves | Entered Factory 7864 | -5/Factory | Accompanied by 16 allies 7905 | -5/Factory | Identified exit to Factory 7905 | -5/Factory | Discovered exit to Factory (range 20) 8017 | -5/Factory | Fabricated Exp. Terrain Scanner? 8034 | -5/Factory | Fabricated Cld. Nuclear Pulse Thruster (x1) 8105 | -5/Factory | Fabricated Cld. Nuclear Pulse Thruster (x1) 8136 | -5/Factory | Identified exit to Upper Caves 8136 | -5/Factory | Identified exit to Extension 8175 | -5/Factory | Build established: Wizard-Ninja 8411 | -5/Factory | Reached level 22 8432 | -5/Factory | Destroyed 7 combat bots 8590 | -5/Factory | Fabricated Cld. Nuclear Pulse Thruster (x1) 8948 | -5/Factory | Fabricated Biomechanical Wings (x1) 9006 | -5/Factory | Fabricated Nanoactuators (x2) 9008 | -5/Factory | Upgraded with Utility slot (x1) 9163 | -5/Factory | Local fabrication network quarantined 9336 | -5/Factory | Discovered exit to Factory (range 29) 9374 | -5/Factory | Discovered exit to Factory (range 26) 9420 | -5/Factory | Entered Extension 9420 | -5/Extension | Accompanied by 14 allies 9421 | -5/Extension | Loaded intel: 17 terminal locations 9427 | -5/Extension | Disrupted transfer network 9462 | -5/Extension | Rescued a captive Derelict 9483 | -5/Extension | Rescued a captive Derelict 9574 | -5/Extension | Crushed by falling debris 9619 | -5/Extension | Rescued a captive Derelict 9620 | -5/Extension | Rescued a captive Derelict 9621 | -5/Extension | Discovered exit to Factory (range 27) 9630 | -5/Extension | Rescued a captive Derelict 9631 | -5/Extension | Rescued a captive Derelict 9638 | -5/Extension | Rescued A7 9671 | -5/Extension | Rescued a captive Derelict 9684 | -5/Extension | Discovered exit to Factory (range 10) 9684 | -5/Extension | Identified exit to Cetus 9684 | -5/Extension | Discovered exit to Cetus (range 6) 9819 | -5/Extension | Entered Cetus 9819 | -5/Cetus | Accompanied by 18 allies 9821 | -5/Cetus | Reached level 23 9822 | -5/Cetus | Spotted Cetus Guard 9822 | -5/Cetus | Spotted Cetus Guard 9823 | -5/Cetus | Spotted Cetus Guard 9823 | -5/Cetus | Spotted Cetus Guard 9826 | -5/Cetus | Acquired a Cetus Manufacturing Module code from A7 9831 | -5/Cetus | Destroyed Cetus Guard 9838 | -5/Cetus | Destroyed Cetus Guard 9841 | -5/Cetus | Cetus Manufacturing Module disabled 9844 | -5/Cetus | Allies destroyed Cetus Guard 9867 | -5/Cetus | Identified exit to Archives 9867 | -5/Cetus | Discovered exit to Archives (range 29) 9872 | -5/Cetus | Failed to start Cetus Manufacturing Module 9894 | -5/Cetus | Found a strange terminal 9904 | -5/Cetus | Escorted A7 to Cetus Mainframe 9937 | -5/Cetus | Spotted Cetus Guard 9937 | -5/Cetus | Spotted Cetus Guard 9937 | -5/Cetus | Spotted Cetus Guard 9940 | -5/Cetus | Core integrity fell below 50% 9941 | -5/Cetus | Spotted Cetus Guard 9941 | -5/Cetus | Discovered exit to Factory (range 16) 9952 | -5/Cetus | Core integrity fell below 20% 9954 | -5/Cetus | Allies destroyed Cetus Guard 9955 | -5/Cetus | Allies destroyed Cetus Guard 9956 | -5/Cetus | Destroyed Cetus Guard 9957 | -5/Cetus | Met Revision 17 10018 | -5/Cetus | Discovered exit to Factory (range 28) 10391 | -5/Cetus | Entered Factory 10391 | -4/Factory | Accompanied by 16 allies 10393 | -4/Factory | Reached level 24 10396 | -4/Factory | Received a hacking code to weaken MAIN.C 10511 | -4/Factory | Identified exit to Upper Caves 10511 | -4/Factory | Discovered exit to Upper Caves (range 23) 10582 | -4/Factory | Garrison activated, responded to threat 10721 | -4/Factory | Allied Derelicts emerged from ambush trap array 10721 | -4/Factory | Identified exit to Research 10721 | -4/Factory | Discovered exit to Research (range 15) 10785 | -4/Factory | Reached level 25 10820 | -4/Factory | Destroyed 8 combat bots 10834 | -4/Factory | Upgraded with Utility slot (x1) 10876 | -4/Factory | Discovered exit to Research (range 29) 11047 | -4/Factory | Fabricated Cld. Antimatter Reactor (x2) 11089 | -4/Factory | Local fabrication network quarantined 11168 | -4/Factory | First assault squad dispatched 11252 | -4/Factory | Fabricated Cld. Antimatter Reactor (x2) 11288 | -4/Factory | P-70 Sage assimilated hostile L-61 Swordsman 11474 | -4/Factory | Entered Upper Caves 11474 | -4/Upper Caves | Accompanied by 15 allies 11507 | -4/Upper Caves | Encountered a Warlord checkpoint 11545 | -4/Upper Caves | Attracted the attention of an 0b10 checkpoint 11551 | -4/Upper Caves | Reached level 26 11603 | -4/Upper Caves | Identified exit to Upper Caves 11603 | -4/Upper Caves | Discovered exit to Upper Caves (range 13) 11757 | -4/Upper Caves | Entered another Upper Caves area 11757 | -4/Upper Caves | Accompanied by 15 allies 11780 | -4/Upper Caves | Found Alien Artifact 11780 | -4/Upper Caves | Identified Dimensional Node Initializer 11780 | -4/Upper Caves | Initialized slip node 11797 | -4/Upper Caves | Learned Research garrison access intel 11803 | -4/Upper Caves | Build established: Wizard-Sprinter 11814 | -4/Upper Caves | Learned location of Armory (-3) 11876 | -4/Upper Caves | Identified exit to Zhirov 11876 | -4/Upper Caves | Discovered exit to Zhirov (range 23) 11879 | -4/Upper Caves | Attracted the attention of an 0b10 checkpoint 11893 | -4/Upper Caves | Encountered a Warlord checkpoint 11909 | -4/Upper Caves | Entered Zhirov 11909 | -4/Zhirov | Accompanied by 15 allies 11909 | -4/Zhirov | Identified exit to Proximity Caves 11909 | -4/Zhirov | Discovered exit to Proximity Caves (range 3) 11913 | -4/Zhirov | Met Zhirov 11917 | -4/Zhirov | Learned location of Quarantine (-2) 11917 | -4/Zhirov | Learned location of Testing (-3) 11917 | -4/Zhirov | Learned location of Command (-1) 11919 | -4/Zhirov | Zhirov requested help retrieving the SGEMP Prototype 11922 | -4/Zhirov | Found Alien Artifact 11922 | -4/Zhirov | Identified Transdimensional Reconstructor 11922 | -4/Zhirov | Warped through subspace 11932 | -4/Zhirov | Found Alien Artifact 11932 | -4/Zhirov | Identified Integrated Reactor 11932 | -4/Zhirov | Installed Integrated Reactor, increased core energy generation (+2%) 11974 | -4/Zhirov | Entered Proximity Caves 11974 | -3/Proximity Caves | Accompanied by 15 allies 12071 | -3/Proximity Caves | Discovered exit to Research (range 13) 12096 | -3/Proximity Caves | Learned 6 Lower Caves zone layouts 12096 | -3/Proximity Caves | Learned 6 Upper Caves zone layouts 12096 | -3/Proximity Caves | Learned Armory trap positions 12096 | -3/Proximity Caves | Learned Armory emergency access door positions 12096 | -3/Proximity Caves | Learned Extension terminal intel 12096 | -3/Proximity Caves | Reached level 27 12097 | -3/Proximity Caves | Attracted the attention of an 0b10 base 12112 | -3/Proximity Caves | P-70 Sage assimilated hostile S-43 Plague 12124 | -3/Proximity Caves | Entered Research 12124 | -3/Research | Accompanied by 14 allies 12125 | -3/Research | Identified exit to Testing 12126 | -3/Research | Identified exit to Research 12128 | -3/Research | Loaded intel: 3 garrison access locations 12194 | -3/Research | Identified exit to Armory 12214 | -3/Research | Reached level 28 12244 | -3/Research | Found Enh. Force Lance 12344 | -3/Research | Fabricated Femtoactuators (x1) 12418 | -3/Research | Fabricated Beam Splitter? 12424 | -3/Research | Build established: Wizard-Ninja 12522 | -3/Research | Garrison activated, responded to threat 12697 | -3/Research | Fabricated Exp. Core Analyzer (x1) 12766 | -3/Research | Fabricated EM Dispersion Field (x1) 12798 | -3/Research | Found Exp. Target Analyzer 13132 | -3/Research | Local fabrication network quarantined 13194 | -3/Research | Fabricated EM Dispersion Field (x1) 13274 | -3/Research | Destroyed 7 combat bots 13276 | -3/Research | Entered another Research area 13276 | -2/Research | Accompanied by 13 allies 13278 | -2/Research | Reached level 29 13278 | -2/Research | Reached level 30 13294 | -2/Research | Upgraded with Utility slot (x1) 13297 | -2/Research | Found Exp. Hacking Suite 13301 | -2/Research | Identified exit to Access 13301 | -2/Research | Discovered exit to Access (range 30) 13303 | -2/Research | Identified exit to Quarantine 13384 | -2/Research | P-80 Master assimilated allied Administrator 6b 13523 | -2/Research | Fabricated Adv. Reaction Control System (x1) 13634 | -2/Research | Fabricated Exp. Shock Absorption System (x1) 13719 | -2/Research | Found Exp. Transmission Jammer 13769 | -2/Research | Fabricated Exp. Melee Analysis Suite (x1) 13877 | -2/Research | Fabricated Exp. Melee Analysis Suite (x1) 13965 | -2/Research | Reached level 31 13970 | -2/Research | Fabricated Exp. Melee Analysis Suite? 14157 | -2/Research | Destroyed 9 combat bots 14260 | -2/Research | Build established: Machinist-Ninja 14328 | -2/Research | P-80 Master assimilated allied H-88 Terminator 14376 | -2/Research | Fabricated Exp. Melee Analysis Suite (x1) 14453 | -2/Research | Destroyed 8 combat bots 14509 | -2/Research | Entered Access 14509 | -1/Access | Accompanied by 13 allies 14511 | -1/Access | Reached level 32 14511 | -1/Access | Reached level 33 14596 | -1/Access | Destroyed 8 combat bots 14624 | -1/Access | Identified exit to Command 14624 | -1/Access | Discovered exit to Command (range 25) 14687 | -1/Access | Destroyed 8 combat bots 14778 | -1/Access | Reached level 34 14808 | -1/Access | Fabricated Exp. Phase Shifter (x1) 14866 | -1/Access | Entered Command 14866 | -1/Command | Accompanied by 12 allies 14943 | -1/Command | Disengaged cave seal 14954 | -1/Command | Identified exit to Surface 14954 | -1/Command | Discovered exit to Surface (range 30) 14970 | -1/Command | Spotted M Guard 14970 | -1/Command | Spotted M Guard 14970 | -1/Command | Spotted Combat Programmer 14970 | -1/Command | Spotted Combat Programmer 14981 | -1/Command | Destroyed M Guard 14992 | -1/Command | Combat Programmer assimilated allied Administrator 5a 15008 | -1/Command | Destroyed M Guard 15009 | -1/Command | Destroyed Combat Programmer 15011 | -1/Command | Destroyed Combat Programmer 15011 | -1/Command | Reached level 35 15011 | -1/Command | Destroyed all MAIN.C guards 15020 | -1/Command | Found Prototype Launcher 15020 | -1/Command | Identified Ragnarok Missile Launcher 15025 | -1/Command | Found Prototype Reactor 15025 | -1/Command | Identified Zero-point Reactor 15032 | -1/Command | Found Prototype Device 15032 | -1/Command | Identified AEGIS Remote Shield 15042 | -1/Command | Found Prototype Protection 15042 | -1/Command | Identified Hvy. Regenerative Plating 15095 | -1/Command | Met MAIN.C 15109 | -1/Command | Hacked MAIN.C using A7's code 15143 | -1/Command | Destroyed MAIN.C Shell 15145 | -1/Command | MAIN.C activated Command garrisons 15159 | -1/Command | P-80 Master assimilated allied Director 10a 15160 | -1/Command | Reached level 36 15160 | -1/Command | Destroyed MAIN.C 15167 | -1/Command | P-80 Master assimilated allied I-47 Archangel 15174 | -1/Command | Discovered exit to Surface (range 29) 15236 | -1/Command | Spotted B-99 Colossus 15277 | -1/Command | 0b10 Conduit disabled 15349 | -1/Command | Reached level 37 15350 | -1/Command | Build established: Machinist-Scout 15376 | -1/Command | Destroyed 28 combat bots 15535 | -1/Command | Destroyed 8 combat bots 15587 | -1/Command | Phase Generator disabled 15597 | -1/Command | Spotted Alpha 7 15598 | -1/Command | Destroyed Alpha 7 15613 | -1/Command | Spotted B-99 Colossus 15625 | -1/Command | Destroyed B-99 Colossus 15632 | -1/Command | Spotted B-99 Colossus 15657 | -1/Command | Destroyed B-99 Colossus 15730 | *** | Establishing 0b11! Last Messages --------------- 15710_ Field strength at 95. 15711_ Field strength at 90. 15712_ Field strength at 85. 15713_ Field strength at 80. 15714_ Field strength at 75. 15715_ Field strength at 70. 15716_ Field strength at 65. 15717_ Field strength at 60. 15718_ Field strength at 55. 15719_ Field strength at 50. 15720_ Field strength at 45. 15721_ Field strength at 40. 15722_ Field strength at 35. 15723_ Field strength at 30. 15724_ Field strength at 25. 15725_ Field strength at 20. 15726_ Field strength at 15. 15727_ Field strength at 10. 15728_ Field strength at 5. 15729_ Stasis field depleted. Map ----- +----------------------------------------------------+ | "" ########"" #"T "## ### | | ########"" #""" "#######+######### | | ! ########"T # "" ######## | | ########"" # ! !!! # | | ##############"" + *%= # | | ############# ! # %[% # | | ############# # ##########" "[ | | ###################"## = %##########" # | | ####################"#++++#"######### " " " | | ##################### "## ##### # "T" | | ###################"# #"# ###### # """ | | ###################" ;######## "#"##### | | ###################;= ;"# ###### * | | ####################% "######## % | | ####################;; !"######## | | ####### #;%! ! ######### | | ##########! ###############"###### | | """ """" ########## ^! ##################### | | """ """" ##########!= ##################### | | """ """" ######## ########## | | """ """" ######## ########## | | ######## ^ ^^ ##### # | | ######## ^ ##### #### | | ####+############## ^ ^ ##### #### = | | #### ### ### "" ^ ##### #### ! ! | | #### ### ### "@ ^ ##### #### "" | | #### # # ### ##### ####"""" | | ####%### ### ^ ^ ##### ####"""" | | ## " ### ^ ##### #### "" | | ## # ### ########## | | ## + "" ### ### ## ! | | ## # """" ################## ## | | ## # """" ################## ########/## | | ## # "" ################## + | | ## # ####### # ! # ##### ### | | ## =! # ####### # # # | | ##[=! ################ """" %|# # + | | ##%[%* # # ########### """"[!!####### # !! | | =*== *! [! # """"%!%+=[%![ # ! ! | | [= =!== # """"[[!####### ######### | | = =[ != " %! !%# ##### ## # | | * *! !=!== # [!*= # ##### ## # | | %!=%%[%%** % / """%[! ####### ## # | | ####+### ![# # #! #### """" ####### ## # | | #### % = ## """" ###### # ""# | | #### # """" ###### + ""# | | #### = % % " ## ###### # ""# | | #### "" "## ####### ## T# | | #### """" "## ####### ## ""# | | #### """" """##################" ## ""# | +----------------------------------------------------+ Best States ------------- Heat Dissipation 67 Energy Generation 105 Energy Capacity 1940 Matter Stores 300 Matter Capacity 300 Sight Range 16 Robot Scan Range 30 Terrain Scan Range 30 Terrain Scan Density 710 ECM Strength 3 Jamming Range 22 Power Amplification 40 Armor Coverage 225 Resistance: KI 55 Resistance: TH 100 Resistance: EX 100 Resistance: EM 100 Resistance: I 35 Resistance: S 35 Resistance: P 35 Melee Speed Boost 50 Phase Shifting 20 Evasion (%) 100 Melee Accuracy 48 Target Analysis 12 Core Analysis 15 Stasis Canceling 2 Offensive Hacking 91 Defensive Hacking 62 Item Schematics ----------------- Hcp. Battery | -10/Materials | Hacked ECM Suite | -10/Materials | Hacked Flight Unit | -10/Materials | Hacked EM Pulse Gun | -10/Materials | Hacked Lightning Gun | -8/Materials | Scanalyzed Com. Battery | -8/Materials | Scanalyzed Adv. Terrain Scanner | -8/Materials | Scanalyzed Maneuvering Thrusters | -8/Materials | Scanalyzed Adv. Signal Interpreter | -8/Materials | Extracted Imp. Flight Unit | -8/Materials | Extracted Weapon Shielding | -8/Materials | Extracted Sml. Matter Pod | -8/Materials | Extracted Melee Analysis Suite | -8/Materials | Extracted Flak Cannon | -8/Materials | Extracted Shock Rifle | -8/Materials | Extracted Shield Generator | -8/Materials | Extracted Pulse Rifle | -8/Materials | Extracted Cesium-ion Thruster | -8/Materials | Hacked Cld. Ion Engine | -8/Materials | Hacked Transmission Jammer | -8/Materials | Hacked Actuator Array | -8/Materials | Hacked Disposable Heat Sink | -8/Materials | Hacked Imp. ECM Suite | -8/Materials | Scanalyzed Imp. VTOL Module | -8/Materials | Scanalyzed Lgt. Deuterium Engine | -8/Materials | Scanalyzed Mining Laser | -8/Materials | Extracted Particle Charger | -8/Materials | Extracted Microactuators | -8/Materials | Hacked Imp. Deuterium Engine | -8/Storage | Hacked Cld. VTOL Module | -7/Factory | Hacked Cld. Deuterium Engine | -7/Factory | Hacked Imp. Maneuvering Thrusters | -7/Factory | Hacked System Backup Module | -7/Factory | Scanalyzed Phase Shifter | -7/Factory | Scanalyzed Cloaking Device | -7/Factory | Hacked Lrn. Terrain Scanner | -7/Factory | Hacked Cld. Cesium-ion Thruster | -7/Factory | Hacked Adv. System Shield | -7/Factory | Hacked Combat Drone Bay | -7/Data Miner | Free Lgt. Regenerative Plating | -7/Data Miner | Free Triangulator | -7/Data Miner | Free Exp. Sensor Array | -7/Data Miner | Free Exp. Terrain Scanner | -7/Data Miner | Free Exp. Terrain Scan Processor | -7/Data Miner | Free Mni. Smartbomb Launcher | -7/Data Miner | Free Kinetic Spear | -7/Data Miner | Free Exp. Signal Interpreter | -6/Factory | Hacked Imp. Transmission Jammer | -6/Factory | Scanalyzed Adv. ECM Suite | -6/Factory | Hacked Power Amplifier | -6/Factory | Hacked Adv. Melee Analysis Suite | -6/Factory | Hacked Imp. Core Analyzer | -6/Factory | Hacked Adv. Hacking Suite | -6/Factory | Hacked Cld. Nuclear Pulse Thruster | -6/Factory | Hacked Exp. Cesium-ion Thruster | -6/Factory | Hacked Cld. Fission Core | -6/Factory | Hacked Nanoactuators | -6/Factory | Hacked Reaction Control System | -6/Factory | Hacked Imp. System Restoration Module | -6/Factory | Hacked Biomechanical Wings | -5/Factory | Hacked Exp. ECM Suite | -5/Factory | Hacked Imp. Cloaking Device | -5/Factory | Hacked Nuclear Pulse Array | -5/Factory | Hacked Force Lance | -5/Factory | Hacked Micro-nuke Launcher | -5/Factory | Hacked Enh. Force Lance | -4/Factory | Hacked Adv. Core Analyzer | -4/Factory | Hacked Cld. Antimatter Reactor | -4/Factory | Hacked Adv. Reaction Control System | -4/Factory | Hacked Exp. Target Analyzer | -4/Factory | Hacked Exp. Transmission Jammer | -4/Factory | Hacked Adv. Power Amplifier | -4/Factory | Hacked Exp. Hacking Suite | -4/Factory | Hacked Imp. Remote Datajack | -4/Factory | Scanalyzed Imp. Stasis Canceller | -4/Factory | Hacked Assault Drone Bay | -4/Zhirov | Free Exp. Heat Sink | -4/Zhirov | Free Exp. Optical Array | -4/Zhirov | Free Imp. Arc Thrower | -4/Zhirov | Free Femtoactuators | -3/Research | Hacked Exp. Core Analyzer | -3/Research | Hacked Exp. Cloaking Device | -3/Research | Hacked Exp. Thermal Defense Suite | -3/Research | Hacked Exp. Focal Shield | -3/Research | Hacked EM Dispersion Field | -3/Research | Hacked Beam Splitter | -3/Research | Hacked Exp. Shock Absorption System | -3/Research | Hacked Exp. Force Field | -3/Research | Hacked Exp. Coolant Injector | -3/Research | Hacked Adv. Remote Datajack | -3/Research | Scanalyzed Exp. Melee Analysis Suite | -3/Research | Hacked System Purifier | -3/Research | Hacked Exp. Energy Well | -3/Research | Hacked Exp. Phase Shifter | -1/Access | Hacked Robot Schematics ------------------ O-16 Technician | -10/Materials | Hacked M-13 Machinist | -10/Materials | Hacked D-53 Grenadier | -8/Storage | Hacked S-27 Virus | -7/Data Miner | Free G-50 Soldier | -7/Data Miner | Free H-66 Slayer | -7/Data Miner | Free P-70 Sage | -7/Data Miner | Free I-36 Angel | -7/Data Miner | Free O-32 Director | -4/Factory | Hacked M-36 Artificer | -4/Factory | Hacked T-07 Excavator | -4/Factory | Hacked Fabricated ------------ Cld. VTOL Module | x1 | -7/Factory Cld. VTOL Module | x1 | -7/Factory Cld. VTOL Module | x1 | -7/Factory Cld. Cesium-ion Thruster | x1 | -6/Factory Cld. Cesium-ion Thruster | x1 | -6/Factory Cld. Cesium-ion Thruster | x1 | -6/Factory Cld. Cesium-ion Thruster | x1 | -6/Factory Cld. Nuclear Pulse Thruster | x1 | -6/Factory Cld. Nuclear Pulse Thruster | x1 | -6/Factory Exp. Terrain Scanner | x1 | -5/Factory Cld. Nuclear Pulse Thruster | x1 | -5/Factory Cld. Nuclear Pulse Thruster | x1 | -5/Factory Cld. Nuclear Pulse Thruster | x1 | -5/Factory Biomechanical Wings | x1 | -5/Factory Nanoactuators | x2 | -5/Factory Cld. Antimatter Reactor | x2 | -4/Factory Cld. Antimatter Reactor | x2 | -4/Factory Femtoactuators | x1 | -3/Research Beam Splitter | x1 | -3/Research Exp. Core Analyzer | x1 | -3/Research EM Dispersion Field | x1 | -3/Research EM Dispersion Field | x1 | -3/Research Adv. Reaction Control System | x1 | -2/Research Exp. Shock Absorption System | x1 | -2/Research Exp. Melee Analysis Suite | x1 | -2/Research Exp. Melee Analysis Suite | x1 | -2/Research Exp. Melee Analysis Suite | x1 | -2/Research Exp. Melee Analysis Suite | x1 | -2/Research Exp. Phase Shifter | x1 | -1/Access Alien Tech Used ----------------- Dimensional Node Initializer Transdimensional Reconstructor Integrated Reactor Achievements -------------- Just Shoot The Terminal Poison In The Code Challenges ------------ None RPGLIKE | -11 -10 -10 -10 -9 -8 -8 -8 -8 -7 -7 -7 -7 -6 -6 -6 -6 -6 -5 -5 -5 -5 -4 -4 -4 -4 -3 -3 -2 -1 -1 --------- Run | Scr Mat Min Exi Min Mat Gar Mat Sto Fac Low Low Dat Pro Fac Low Low Zio Pro Fac Ext Cet Fac Upp Upp Zhi Pro Res Res Acc Com Levels Raised 36 | . 1 1 . 1 6 1 1 1 3 . . . 2 1 . . 1 1 1 . 1 2 1 . . 1 1 3 3 3 XP Earned 60178 | 6000 2825 1150 350 1536 9062 1419 301 1405 4628 170 617 253 2146 1879 319 286 170 1529 2184 652 848 3581 295 350 152 1207 2572 4245 3557 4490 XP Spent 53510 | 2470 3650 2800 . 500 8040 . 2600 3250 2180 . . 1000 2900 3200 . . . . 3820 . . 4900 1600 . . . 2100 4100 4400 . Upgrades 54 | 7 8 2 . 1 10 . 1 3 6 . . 1 1 1 . . . . 3 . . 2 1 . . . 1 1 5 . Power Slot 2 | . . . . . 1 . . 1 . . . . . . . . . . . . . . . . . . . . . . Propulsion Slot 5 | 2 1 1 . . . . . 1 . . . . . . . . . . . . . . . . . . . . . . Utility Slot 13 | 1 2 1 . . 3 . 1 . . . . . 1 1 . . . . 1 . . 1 . . . . . 1 . . Heat Dissipation 7 | 2 . . . . 1 . . . 2 . . . . . . . . . 2 . . . . . . . . . . . Energy Generation 3 | 1 . . . . 1 . . . 1 . . . . . . . . . . . . . . . . . . . . . Mass Support 6 | . . . . . 1 . . . 1 . . . . . . . . . . . . 1 1 . . . 1 . 1 . Inventory Capacity 4 | 1 . . . 1 . . . 1 . . . 1 . . . . . . . . . . . . . . . . . . Terrain Scan Density 7 | . 5 . . . . . . . 2 . . . . . . . . . . . . . . . . . . . . . Hack Attack % 2 | . . . . . 2 . . . . . . . . . . . . . . . . . . . . . . . . . Hack Defense % 1 | . . . . . 1 . . . . . . . . . . . . . . . . . . . . . . . . . KI Resistance % 4 | . . . . . . . . . . . . . . . . . . . . . . . . . . . . . 4 . Protomatter Created 8724 | . 221 93 . 170 480 55 11 275 593 . 167 . 253 237 113 66 . 161 493 124 143 726 70 132 . 140 811 1117 896 1177 Integrity Restored 8058 | . 333 377 . 91 508 139 31 97 520 . 274 . 394 270 110 93 . 176 535 223 643 1051 170 103 . 142 271 363 357 787 Core 5761 | . 294 226 . 58 394 112 31 48 334 . 210 . 316 183 62 73 . 102 398 216 580 601 115 56 . 92 184 248 239 589 Parts 2297 | . 39 151 . 33 114 27 . 49 186 . 64 . 78 87 48 20 . 74 137 7 63 450 55 47 . 50 87 115 118 198 Protomatter Decayed 16141 | . 66 43 . 91 501 . 49 237 710 . 68 . 67 180 73 . . 72 259 118 4 850 11 18 . 103 694 1009 734 10184 Game ------ Seed FieldNodeSplitter Manual? 1 Play Time 08:55:00 Cumulative 460.0 hours Start 2020.05.15 @ 03:48:42 End 2020.05.16 @ 02:13:10 Sessions 3 Manual Loads 0 Difficulty Explorer Special Mode Winter2019/RPGLIKE Game No. 48 Rogue 1 Adventurer 3 Explorer 44 Win Type 1 Total 24 Types 19/2/2/1/0/0/0 Lore% 72 Gallery% 90 Achievement% 89 Wizard Run 0 Options --------- ASCII 0 Keyboard 1 Movement Vi Keybinds 1 Fullscreen 2 Font 24/Terminus Map View 76x50 Tactical HUD 1 Map Filters NONE Filters NONE Steam 1 RUN: bbafa3b2-3f30-483f-95f7-6a1fdb24e13e